Workbook

Sheet Edwin Construction Quote (hidden)
C1: Quoted dated 17 October 2025 - Info provided by the end-user.
B16: BILL OF QUANTITIES FOR SEWAGE PLANT ROAD ROUTINE MAINTENANCE
B35: All payment items to be provided in accordance with COTO: Standard Specifications for Road and Bridge Works for South African Road Authorities
B44: C1.2 GENERAL REQUIREMENTS AND PROVISIONS
B45: Item | C45: Description | D45: Unit | E45: Quantity | F45: Rate | G45: Amount R
A46: 159 | B46: C1.2 | C46: GENERAL REQUIREMENTS AND PROVISIONS
A48: 2811 | B48: C1.2.1 | C48: Environmental Management:
A50: 2812 | B50: C1.2.1.1 | C50: Monitoring of compliance with and reporting on the EMP | D50: month | E50: 3 | F50: 5000 | G50: =E50*F50 -> 15,000.00
A52: 2813 | B52: C1.2.1.2 | C52: Dedicated environmental officer (if specified in the Contract Documentation) | D52: month | E52: 3 | F52: 45000 | G52: =E52*F52 -> 135,000.00
A54: 2814 | B54: C1.2.2 | C54: Programming and Reporting:
A56: 2820 | B56: C1.2.2.6 | C56: Preparation and submission of all information and reports specified in the Contract Documentation | D56: month | E56: 3 | F56: 5000 | G56: =E56*F56 -> 15,000.00
A58: 5167 | B58: C1.2.4 | C58: Stakeholder liaison | D58: month | E58: 3 | F58: 2500 | G58: =E58*F58 -> 7,500.00
A60: 2835 | B60: C1.2.5 | C60: Safety:
A62: 2836 | B62: C1.2.5.1 | C62: Health and safety plan | D62: lump sum | E62: 1 | F62: 7500 | G62: =E62*F62 -> 7,500.00
A64: 2837 | B64: C1.2.5.2 | C64: Implementation of health and safety plan | D64: month | E64: 3 | F64: 0 | G64: =E64*F64 -> 0
A66: 2843 | B66: C1.2.8 | C66: Dayworks:
A68: 2844 | B68: C1.2.8.1 | C68: Personnel:
A70: 2845 | C70: (a) Unskilled labourer | D70: Hour | E70: 2500 | F70: 70 | G70: =E70*F70 -> 175,000.00
A72: 2846 | C72: (b) Semi-skilled labourer | D72: Hour | E72: 1500 | F72: 75 | G72: =E72*F72 -> 112,500.00
A74: 2847 | C74: (c) Skilled labourer | D74: Hour | E74: 1000 | F74: 80 | G74: =E74*F74 -> 80,000.00
A76: 2848 | C76: (d) Gang leader | D76: Hour | E76: 500 | F76: 200 | G76: =E76*F76 -> 100,000.00
A78: 2849 | C78: (e) Foreman | D78: Hour | E78: 500 | F78: 500 | G78: =E78*F78 -> 250,000.00
C80: (f) Skilled Foreman | D80: Hour | E80: 500 | F80: 600 | G80: =E80*F80 -> 300,000.00
C82: (g) Flagman | D82: Hour | E82: 800 | F82: 750 | G82: =E82*F82 -> 600,000.00
B84: Total Carried Forward To Summary | G84: =SUM(G46:G83) -> 1,797,500.00
B88: C1.2 GENERAL REQUIREMENTS AND PROVISIONS
B89: Item | C89: Description | D89: Unit | E89: Quantity | F89: Rate | G89: Amount R
B90: Brought Forward | G90: =G84 -> 1,797,500.00
A91: 2851 | B91: C1.2.8.2 | C91: Construction equipment:
A93: 2852 | C93: (a) Motor grader (minimum 9 tons, power ± 100kW) | D93: Hour | E93: 40 | F93: 1000 | G93: =E93*F93 -> 40,000.00
A95: 2853 | C95: (b) Vibratory roller (9-12 tons) | D95: Hour | E95: 30 | F95: 700 | G95: =E95*F95 -> 21,000.00
A97: 2854 | C97: (c) Pneumatic roller (gross mass: ± 4,5 tons unloaded to 18 tons loaded) | D97: Hour | E97: 30 | F97: 700 | G97: 21,000.00
A99: 2855 | C99: (d) Front end loader (minimum power 90kW) | D99: Hour | E99: 60 | F99: 700 | G99: 42,000.00
A101: 2856 | C101: (e) Tractor loader backhoe (55-70 kW 0,5m3 bucket) | D101: Hour | E101: 30 | F101: 650 | G101: 19,500.00
A103: 2857 | C103: (f) Excavator (minimum power 105 kW) | D103: Hour | E103: 40 | F103: 950 | G103: 38,000.00
C105: (g) Water truck (minimum 5 kl) | D105: Hour | E105: 40 | F105: 400 | G105: 16,000.00
C107: (h) Tip truck (minimum load capacity 10 tons) | D107: Hour | E107: 40 | F107: 450 | G107: 18,000.00
A109: 2860 | B109: C1.2.8.3 | C109: Vehicles:
A111: 2861 | C111: (a) Light delivery vehicle | D111: kilometre | E111: 3000 | F111: 5 | G111: 15,000.00
A113: 2862 | C113: (b) Flatbed truck | D113: kilometre | E113: 1000 | F113: 8 | G113: 8,000.00
A115: 5172 | C115: (c) Dump truck | D115: kilometre | E115: 2500 | F115: 12 | G115: 30,000.00
A117: 5174 | B117: C1.2.8.4 | C117: Materials:
A119: 5175 | C119: (a) Procurement of materials | D119: prov sum | E119: 1
A121: 5176 | C121: (b) Contractor's handling costs, profit and all other charges in respect of item C1.2.8.4(a) | D121: % | E121: 10
B123: Total Carried Forward To Summary | G123: =SUM(G90:G122) -> 2,066,000.00
B126: C1.3 CONTRACTOR’S SITE ESTABLISHMENT AND GENERAL OBLIGATIONS
B127: Item | C127: Description | D127: Unit | E127: Quantity | F127: Rate | G127: Amount R
A128: 198 | B128: C1.3 | C128: CONTRACTOR’S SITE ESTABLISHMENT AND GENERAL OBLIGATIONS
A130: 2868 | B130: C1.3.1 | C130: The Contractor's general obligations:
A132: 2869 | B132: C1.3.1.1 | C132: Fixed obligations | D132: lump sum | E132: 1 | F132: =28000000*0.3*0.2 -> 1680000 | G132: =E132*F132 -> 1,680,000.00
A134: 2870 | B134: C1.3.1.2 | C134: Value-related obligations | D134: lump sum | E134: 1 | G134: =E134*F134 -> 0
A136: 2871 | B136: C1.3.1.3 | C136: Time-related obligations | D136: month | E136: 3 | F136: =28000000*0.3*0.8/3 -> 2240000 | G136: 6,720,000.00 | H136: =G132+G136 -> 8,400,000.00
A138: 5177 | B138: C1.3.2 | C138: Contract sign boards | D138: m² | E138: 5 | F138: 1500 | G138: 7,500.00
B140: PC1.3.3 | C140: Site Establishment | G140: 0
B142: PC1.3.3.1 | C142: Offices and storage sheds (one of each) | D142: Sum | E142: 1 | F142: 25000 | G142: 25,000.00
B144: PC1.3.3.2 | C144: Accommodation | D144: Months | E144: 3 | F144: 20000 | G144: 60,000.00
B146: PC1.3.3.3 | C146: Ablution and latrine facilities (Canteen and changerooms) | D146: Sum | E146: 1 | F146: 150000 | G146: 150,000.00
B148: PC1.3.3.4 | C148: Connection of the water supply, electric power, communications, dealing with water, and site access. | D148: Sum | E148: 1 | F148: 55000 | G148: 55,000.00
B150: PC1.3.3.5 | C150: Removal of site establishment (i.e., Destablishment). (Removal of all items as stated above, including restoring and making good to the Project Manager's satisfaction) | D150: Sum | E150: 1 | F150: 75000 | G150: 75,000.00
G151: 0
B152: PC1.3.3.6 | C152: Tools and equipment | D152: Months | E152: 3 | F152: 5000 | G152: 15,000.00
B154: PC1.3.3.7 | C154: Transport to and from site | D154: Months | E154: 3 | F154: 35000 | G154: 105,000.00
B156: PC1.3.3.8 | C156: Quality Officer complying with ISO 9001 | D156: Months | E156: 3 | F156: 75000 | G156: 225,000.00
B173: Total Carried Forward To Summary | G173: =SUM(G128:G172) -> 9,117,500.00
B176: C1.5 ACCOMMODATION OF TRAFFIC
B177: Item | C177: Description | D177: Unit | E177: Quantity | F177: Rate | G177: Amount R
A178: 200 | B178: C1.5 | C178: ACCOMMODATION OF TRAFFIC
A180: 6190 | B180: C1.5.1 | C180: Accommodation of pedestrian and non-motorised traffic:
A182: 6191 | B182: C.1.5.1.1 | C182: Accommodation of pedestrian and non-motorised traffic | D182: month | E182: 3 | F182: 40000 | G182: =E182*F182 -> 120,000.00
A184: 6196 | B184: C1.5.2 | C184: Accommodation of vehicular traffic | D184: month | E184: 3 | F184: 75000 | G184: =E184*F184 -> 225,000.00
A186: 6197 | B186: C1.5.3 | C186: Liaison with traffic authorities | D186: month | E186: 3 | F186: 0 | G186: =E186*F186 -> 0
A188: 2963 | B188: C1.5.7 | C188: Temporary traffic control facilities:
A190: 2964 | B190: C1.5.7.1 | C190: Delineators including mounting bases and ballast:
A192: 2966 | C192: (b) Double sided, reversible left or right (600mm x 150mm) | D192: No | E192: 100 | F192: 150 | G192: =E192*F192 -> 15,000.00
A194: 2967 | B194: C1.5.7.2 | C194: Traffic cones, minimum height 750 mm | D194: No | E194: 100 | F194: 200 | G194: =E194*F194 -> 20,000.00
A196: 2968 | B196: C1.5.7.3 | C196: Flagmen | D196: man-shift | E196: 750 | F196: 750 | G196: 562,500.00
A198: 2969 | B198: C1.5.7.4 | C198: Traffic controllers | D198: man-shift | E198: 720 | F198: 750 | G198: 540,000.00
A200: 2988 | B200: C1.5.7.8 | C200: Traffic control stations | D200: month | E200: 3 | F200: 5000 | G200: 15,000.00
A202: 2989 | B202: C1.5.7.9 | C202: Cleaning of traffic control facilities | D202: month | E202: 3 | F202: 750 | G202: 2,250.00
A204: 5201 | B204: C1.5.8 | C204: Traffic safety officer | D204: man-month | E204: 3 | F204: 80000 | G204: 240,000.00
A206: 5202 | B206: C1.5.9 | C206: Traffic safety vehicle | D206: month | E206: 3 | F206: 125000 | G206: 375,000.00
A208: 2993 | B208: C1.5.11 | C208: Provision of safety equipment for visitors | G208: 0
A210: 2994 | B210: C1.5.11.1 | C210: Provision of reflective safety vests for visitors | D210: No | E210: 10 | F210: 250 | G210: 2,500.00
A212: 2995 | B212: C1.5.11.2 | C212: Provision of hard hats for visitors | D212: No | E212: 10 | F212: 50 | G212: 500.00
A214: 2996 | B214: C1.5.12 | C214: Additional traffic accommodation facilities ordered by the Engineer:
A216: 2997 | B216: C1.5.12.1 | C216: Provision of additional traffic accommodation facilities | D216: prov sum | E216: 1
A218: 2998 | B218: C1.5.12.2 | C218: Handling cost, profit and all other charges in respect of item C1.5.12.1 | D218: % | E218: 10
B225: Total Carried Forward To Summary | G225: =SUM(G178:G224) -> 2,117,750.00
B228: C1.6 CLEARING AND GRUBBING
B229: Item | C229: Description | D229: Unit | E229: Quantity | F229: Rate | G229: Amount R
A230: 201 | B230: C1.6 | C230: CLEARING AND GRUBBING
B232: C1.6.1 | C232: Clearing:
B234: C1.6.1.1 | C234: Clearing with machines and some hand labour where necessary | D234: ha | E234: 1 | F234: 27500 | G234: =E234*F234 -> 27,500.00
B236: C1.6.2 | C236: Grubbing:
B238: C1.6.2.1 | C238: Grubbing with machines and some hand labour where necessary | D238: ha | E238: 1 | F238: 35000 | G238: =E238*F238 -> 35,000.00
B240: C1.6.3 | C240: Removal and grubbing of large trees and tree stumps:
B242: C1.6.3.1 | C242: Girth equal to or exceeding 1,0 m up to and including 2,0 m | D242: No | E242: 5 | F242: 1500 | G242: 7,500.00
A244: 5205 | B244: C1.6.7 | C244: Re-clearing of previously cleared areas | D244: ha | E244: 1 | F244: 15000 | G244: 15,000.00
B246: C2.1.2 | C246: Existing services location, detection and verification:
B248: C2.1.2.5 | C248: Using hand excavation to locate, expose and verify services | D248: m³ | E248: 500 | F248: 750 | G248: 375,000.00
B250: Total Carried Forward | G250: =SUM(G230:G249) -> 460,000.00
B252: C3.1 DRAINS
B253: Item | C253: Description | D253: Unit | E253: Quantity | F253: Rate | G253: Amount R
A254: 237 | B254: C3.1 | C254: DRAINS
A256: 6199 | B256: C3.1.1 | C256: Excavation for open drains:
A258: 6200 | B258: C3.1.1.1 | C258: Excavating all material situated within the following depth ranges below the surface level using conventional methods:
A260: 6201 | C260: (a) 0 m to 1,5 m (includes side drains and mitre drains) * one side of the drain only at 2% crossfall | D260: m³ | E260: 5400 | F260: 150 | G260: =E260*F260 -> 810,000.00
A262: 5315 | B262: C3.1.16 | C262: Loading and hauling of material in excess of 1,0 km | D262: m³-km | E262: 3 | F262: 8.00 | G262: =E262*F262 -> 24.00
A264: 5322 | B264: C3.1.24 | C264: Submission of as built drawings by the Contractor | D264: prov sum | E264: 1
B270: Total Carried Forward To Summary | G270: =SUM(G254:G269) -> 810,024.00
B272: C3.2 CULVERTS
B273: Item | C273: Description | D273: Unit | E273: Quantity | F273: Rate | G273: Amount R
A274: 238 | B274: C3.2 | C274: CULVERTS
A276: 6211 | B276: C3.2.1 | C276: Excavation for culvert structures:
A278: 6212 | B278: C3.2.1.1 | C278: Excavating in all material situated within the following depth ranges below the surface level:
A280: 6213 | C280: (a) 0 m to 1,5 m | D280: m³ | E280: 38.4 | F280: 150 | G280: =E280*F280 -> 5,760.00
A282: 3434 | B282: C3.2.2.1 | C282: Using the excavated material | D282: m³ | E282: 24.5 | F282: 150 | G282: =E282*F282 -> 3,675.00
A284: 3435 | B284: C3.2.2.2 | C284: Using imported selected material:
A286: 3436 | C286: (a) From commercial sources (state type) | D286: m³ | E286: 6.2 | F286: 600 | G286: =E286*F286 -> 3,720.00
A288: 3443 | B288: PC3.2.3 | C288: Concrete pipe culverts:
A290: 3445 | B290: C3.2.3.2 | C290: On Class B bedding (type and diameter indicated) | D290: m | E290: 48 | F290: 1250 | G290: 60,000.00
A292: 3446 | C292: (a) Supply and install precast concrete pipe culvert, DN300 (spigot-and-socket with elastomeric seal, SANS 986/677 compliant), laid to line and level. Item includes all pipe sections and jointing materials for one completed road crossing | D292: No | E292: 6 | F292: 2500 | G292: 15,000.00
C294: (b) Stone pitching apron at mirtre drain/culvert outlets, 150 mm thick on geotextile | D294: m2 | E294: 66 | F294: 450 | G294: 29,700.00
C296: (c ) Geotextile separator (Class A2/A3) under mitre drain aprons | D296: m2 | E296: 66 | F296: 25 | G296: 1,650.00
B307: Total Carried Forward | G307: =SUM(G274:G306) -> 119,505.00
B309: C4.3 EXISTING ROAD MATERIALS
A310: 242 | B310: Item | C310: Description | D310: Unit | E310: Quantity | F310: Rate | G310: Amount R
B311: C4.3 | C311: EXISTING ROAD MATERIALS
A312: 3650
B313: C4.3.2 | C313: Cleaning the existing road surface:
A314: 3651
B315: C4.3.2.1 | C315: Cost to clean the road surface | D315: prov sum | E315: 1
A316: 3652
B317: C4.3.2.2 | C317: Handling costs and profit in respect of item C4.3.1.1 | D317: % | E317: 10
A318: 3673
B319: C4.3.9 | C319: Excavating material by using conventional road construction equipment:
A320: 3677
B321: C4.3.9.4 | C321: Natural gravel and sand materials | D321: m³ | E321: 7000 | F321: 40 | G321: =E321*F321 -> 280,000.00
A322: 3678
B323: C4.3.9.5 | C323: Coarse fill and rock fill | D323: m³ | E323: 1000 | F323: 250 | G323: =E323*F323 -> 250,000.00
A324: 3679
B325: C4.3.10 | C325: Excavating material by using labour enhanced methods of construction:
A326: 3683
B327: C4.3.10.4 | C327: Natural gravel and sand materials | D327: m³ | E327: 1000 | F327: 750 | G327: 750,000.00
A328: 3684
B329: C4.3.15 | C329: Stockpiling of road layer materials:
A330: 3688
B331: C4.3.15.4 | C331: Natural gravel material | D331: m³ | E331: 5000 | F331: 55 | G331: 275,000.00
A332: 3700
B333: C4.3.18 | C333: Excavate non-compliant or excess pavement layer material to spoil in sites designated by the Contractor, material consisting of:
A334: 3702
B335: C4.3.18.2 | C335: Crushed stone, macadam, gravel and sand material | D335: m³ | E335: 7000 | F335: 55 | G335: 385,000.00
B341: Total Carried Forward To Summary | G341: =SUM(G311:G340) -> 1,940,000.00
B344: C4.4 COMMERCIAL MATERIALS
A345: 243 | B345: Item | C345: Description | D345: Unit | E345: Quantity | F345: Rate | G345: Amount R
B346: C4.4 | C346: COMMERCIAL MATERIALS
A347: 3733
B348: C4.4.2 | C348: Commercial materials identified by the Contractor from commercial, private or other non-commercial suppliers:
A349: 3734
B350: C4.4.2.1 | C350: Pavement layer material:
C352: (e) Type G5B material | D352: m³ | E352: 5000 | F352: 665 | G352: =E352*F352 -> 3,325,000.00
A353: 3752
B354: C4.4.2.6 | C354: Pioneer material | D354: m³ | E354: 1500 | F354: 750 | G354: =E354*F354 -> 1,125,000.00
A355: 3753
B356: C4.4.3 | C356: Cost to procure commercial materials identified by the Employer from private or non-commercial sources:
A357: 3754
B358: C4.4.3.1 | C358: Cost of procuring | D358: prov sum | E358: 1
A359: 3755
B360: C4.4.3.2 | C360: Handling cost and profit in respect of item C4.4.3.1 | D360: % | E360: 10
B362: C4.4.4 | C362: Cementitious stabilising agents:
B364: C4.4.4.1 | C364: Cement | D364: ton | E364: 200 | F364: 1900 | G364: 380,000.00
B366: C4.4.7 | C366: Sampling and material testing by a commercial laboratory for the stabilisation designs: | G366: 0
B368: C4.4.7.1 | C368: Cost of sampling and material testing | D368: prov sum | E368: 1 | G368: 0
B370: C4.4.7.2 | C370: Handling cost and profit in respect of item C4.4.7.1 | D370: % | E370: 10 | G370: 0
B373: Total Carried Forward To Summary | G373: =SUM(G346:G372) -> 4,830,000.00
B375: C5.1 ROADBED
A376: 245 | B376: Item | C376: Description | D376: Unit | E376: Quantity | F376: Rate | G376: Amount R
B377: C5.1 | C377: ROADBED
A378: 3777
B379: PC5.1.1 | C379: Roadbed construction and compaction:
A380: 3779
B381: PC5.1.1.2 | C381: Compaction of in-situ material to 95 % Mod AASHTO | D381: m³ | E381: 3500 | F381: 35 | G381: =E381*F381 -> 122,500.00
A382: 3793
B383: C5.1.3 | C383: Excavate material to spoil sites designated by the Contractor:
A384: 3794
B385: C5.1.3.1 | C385: Excavate material to spoil from roadbed construction, material obtained from:
A386: 3795
C387: (a) Soft excavation | D387: m³ | E387: 3500 | F387: 50 | G387: =E387*F387 -> 175,000.00
A388: 3796
C389: (b) Boulder excavation Class A | D389: m³ | E389: 2000 | F389: 180 | G389: 360,000.00
A390: 6227
C391: (c) Boulder excavation Class B | D391: m³ | E391: 1000 | F391: 180 | G391: 180,000.00
A392: 6228
C393: (d) Hard excavation (other than by blasting) | D393: m³ | E393: 500 | F393: 350 | G393: 175,000.00
A394: 3797
B395: C5.1.3.2 | C395: Excavate material to spoil from roadbed construction, using labour enhancement, material obtained from:
A396: 3798
C397: (a) Soft excavation | D397: m³ | E397: 500 | F397: 700 | G397: 350,000.00
A398: 3799
C399: (b) Intermediate excavation | D399: m³ | E399: 500 | F399: 770 | G399: 385,000.00
... 130 more rows

Sheet Updated BOQ (hidden)
A2: 1.0 PRELIMINARIES AND GENERAL
A3: Item | B3: Description | C3: Unit | D3: Quantity | E3: Rate | F3: Amount R
B4: CONTRACTOR’S SITE ESTABLISHMENT AND GENERAL OBLIGATIONS
B6: The Contractor's general obligations:
B8: Fixed-Charge and Value Related Items
B10: Site Establishment
B11: Establishment of site offices, ablutions, secure storage, and utility connections.
A13: 1.1 | B13: Transport of all plant and equipment to site | C13: Once Off | D13: 1 | E13: R35,000.00 | F13: =D13*E13 -> R35,000.00
A15: 1.2 | B15: Site offices, ablutions, changing room, eating area, storage and signage | C15: Once Off | D15: 1 | E15: ='Site Establishment Breakdown'!E4+'Site Establishment Breakdown'!E7+'Site Establishment Breakdown'!E9+'Site Establishment Breakdown'!E6+'Site Establishment Breakdown'!E8+2000 -> R14,418.00 | F15: =D15*E15 -> R14,418.00
A17: 1.3 | B17: Temporary utillity connections | C17: Once Off | D17: 1 | E17: ='Site Establishment Breakdown'!E12 -> R5,000.00 | F17: =D17*E17 -> R5,000.00
B19: Safety:
B21: SHE REQUIREMENTS (Compliance with Eskom induction and safety, health and environmental requirements)
B23: Items listed are indicative minimums only. Final PPE selection must be confirmed through a site-specific OHS Risk Assessment as required by the OHS Act No. 85 of 1993 and Section 3.1.2 of Eskom PPE Standard 240-44175132.
A25: 1.4 | B25: Health and safety file | C25: Once Off | D25: 1 | E25: R7,500.00 | F25: =D25*E25 -> R7,500.00
A27: 1.5 | B27: Occupational health medicals (pre-employment) | C27: No | D27: 30 | E27: R1,100.00 | F27: =D27*E27 -> R33,000.00
A29: 1.6 | B29: Police Clearance Certificates (SAPS) | C29: No | D29: 30 | E29: R275.00 | F29: =D29*E29 -> R8,250.00
A31: 1.7 | B31: Hard hat (white, industrial, SABS mark), with adjustable 3-point webbing chin strap, shortened peak per Section 3.13.1, compliant with SANS 139 | C31: No | D31: 30 | E31: =120*1.15 -> R138.00 | F31: =D31*E31 -> R4,140.00
A33: 1.8 | B33: Sun brim for hard hat, navy blue, 100% cotton flame retardant D59, minimum 90mm brim per Section 3.13.2 | C33: No | D33: 30 | E33: =140*1.15 -> R161.00 | F33: =D33*E33 -> R4,830.00
A35: 1.9 | B35: General safety boots, steel/carbon fibre toe, full grain leather, dark brown, oil/slip/heat resistant, SABS SANS 20345 | C35: No | D35: 30 | E35: =800*1.15 -> R920.00 | F35: =D35*E35 -> R27,600.00
A37: 1.10 | B37: Reflective vest (fluorescent orange-red, for "Employee at Work" category), minimum 50mm retro-reflective tape, SANS 50471 compliant per Section 3.10 | C37: No | D37: 30 | E37: R100.00 | F37: =D37*E37 -> R3,000.00
A39: 1.11 | B39: Dust mask FFP2 with valve, disposable, EN 149:2001+A1 2009 FFP2 NR D, protection factor 10x WEL per Section 3.19.1 | C39: No | D39: 30 | E39: =(4.34*1.15)*3*(5*4) -> R299.46 | F39: =D39*E39 -> R8,983.80
A41: 1.12 | B41: Safety spectacles/goggles, impact/dust resistant, anti-fog, anti-scratch, ANSI Z87.1 and CE-EN 166 compliant per Section 3.14.3 | C41: No | D41: 30 | E41: =30*1.15 -> R34.50 | F41: =D41*E41 -> R1,035.00
A43: 1.13 | B43: Hearing protection — disposable foam earplugs, corded, 32 NRR ANSI, slow expanding PU foam per Section 3.15 | C43: No | D43: 30 | E43: =(3.15*1.15)*5*4*3 -> R217.35 | F43: =D43*E43 -> R6,520.50
A45: 1.14 | B45: Hearing protection — earmuffs, dielectric construction, SNR 30 NRR 28, CE compliant per Section 3.15 | C45: No | D45: 30 | E45: =72*1.15 -> R82.80 | F45: =D45*E39 -> R8,983.80
A47: 1.15 | B47: Two-piece boiler suit, navy blue (Pantone 19_3920), pre-shrunk 100% cotton D59, flame & acid retardant SANS 1423-1 class C cat 1, reflective strips, SANS | C47: No | D47: 30 | E47: =650*1.15 -> R747.50 | F47: =D47*E47 -> R22,425.00
A49: 1.16 | B49: General purpose gloves, cut-resistant, micro-foam nitrile coated, EN 388 minimum level 3 cut resistance per Section 3.17.2 | C49: No | D49: 30 | E49: =30*1.15 -> R34.50 | F49: =D49*E49 -> R1,035.00
A51: 1.17 | B51: Socks, non-conductive, anti-static, anti-bacterial, 72-75% cotton/poly/silver fibre per Section 3.16.9 | C51: No | D51: 30 | E51: =50*1.15 -> R57.50 | F51: =D51*E51 -> R1,725.00
A53: 1.18 | B53: Gumboots, solid rubber/PU, black, protective toe cap, acid/oil resistant, SANS 20345 per Section 3.16.7 | C53: No | D53: 30 | E53: =300*1.15 -> R345.00 | F53: =D53*E53 -> R10,350.00
A55: 1.19 | B55: Provision of reflective safety vests for visitors | C55: No | D55: 5 | E55: 250 | F55: =D55*E55 -> R1,250.00
A57: 1.20 | B57: Provision of hard hats for visitors | C57: No | D57: 5 | E57: 50 | F57: =D57*E57 -> R250.00
B59: Survey, Setting Out & Design
A61: 1.21 | B61: Detailed topographical survey of entire site including setting out, establishment of control points and demarcation of road alignment and centreline | C61: Sum | D61: 1
A63: 1.22 | B63: Preparation, submission and approval of Geometric and Stormwater Design Report (PDF, DWG and A0 hardcopies), signed by ECSA Pr.Eng | C63: Sum | D63: 1 | E63: R350,000.00 | F63: =D63*E63 -> R350,000.00
A65: 1.23 | B65: Preparation and submission of As-built Drawings (PDF, DWG compatible with Bentley MicroStation and A0 hardcopies) signed by Contractor's Engineer on completion | C65: Sum | D65: 1 | E65: R250,000.00 | F65: =D65*E65 -> R250,000.00
A67: 1.24 | B67: Preparation and submission of Rubicon Toolbox Pavement Design Verification Report including capacity analysis, traffic loading, climate and material properties, signed by ECSA Pr.Eng | C67: Sum | D67: 1
B69: Documentation & Compliance
A71: 1.25 | B71: Preparation and submission of Skills Transfer and Training documentation including attendance records and topics covered | C71: Sum | D71: 1 | E71: R200,000.00 | F71: =D71*E71 -> R200,000.00
A73: 1.26 | B73: Preparation, submission and approval of Quality Control Plan (QCP) prior to commencement of works | C73: Sum | D73: 1
A75: 1.27 | B75: Obtaining, submitting and managing all Telkom and other service provider wayleave approvals including liaison, relocation of poles and raising of overhead cables | C75: Sum | D75: 1
A77: 1.28 | B77: Preparation and submission of Material and Test Summary Dossier (comprehensive laboratory and field test results in PDF format) | C77: Sum | D77: 1
A79: 1.29 | B79: Preparation and submission of Rehabilitation and Environmental Compliance Report signed by Eskom Environmental Officer and Contractor's Engineer | C79: Sum | D79: 1
A81: 1.30 | B81: Appointment of SANAS-accredited laboratory for all material testing and field density testing for the full duration of the works | C81: Sum | D81: 1
A83: 1.31 | B83: Site De-establishment | C83: Once Off | D83: 1 | F83: =D83*E83 -> 0
A85: 1.32 | B85: Transport of all plant and equipment off site | C85: Once Off | D85: 1 | E85: =E13 -> R35,000.00 | F85: =D85*E85 -> R35,000.00
A87: 1.33 | B87: Exit medicals | C87: Once Off | D87: 1 | E87: =E27 -> R1,100.00 | F87: =D87*E87 -> R1,100.00
B89: Time-related obligations - Contractual Requirements
B91: Environmental Management:
A93: 1.34 | B93: Monitoring of compliance with and reporting on the EMP | C93: Month | D93: 3 | E93: R5,000.00 | F93: R15,000.00
B96: Monthly running cost of site offices, ablutions, secure storage, and utility connections.
A98: 1.35 | B98: Site offices, ablutions, change room, eating area and storage - monthly rental/maintenance | C98: Month | D98: 3 | E98: ='Site Establishment Breakdown'!E19+'Site Establishment Breakdown'!E22+'Site Establishment Breakdown'!E24+'Site Establishment Breakdown'!E21+'Site Establishment Breakdown'!E23 -> R12,418.00 | F98: =D98*E98 -> R37,254.00
A100: 1.36 | B100: Temporary utillity connections | C100: Month | D100: 3 | E100: ='Site Establishment Breakdown'!E26 -> R3,000.00 | F100: =D100*E100 -> R9,000.00
A102: 1.37 | B102: ECSA Professionally Registered Engineer (Pr.Eng), minimum 5 years road construction and maintenance experience post-registration | C102: Month | D102: 3
A104: 1.38 | B104: Construction Manager | C104: Month | D104: 3 | E104: =534.84*8*(5*4) -> R85,574.40 | F104: =D104*E104 -> R256,723.20
A106: 1.39 | B106: Health and Safety Officer | C106: Month | D106: 3 | E106: =108.17*8*(5*4) -> R17,307.20 | F106: =D106*E106 -> R51,921.60
A108: 1.40 | B108: Site Agent/Supervisor | C108: Month | D108: 3 | E108: =153.49*8*(5*4) -> R24,558.40 | F108: =D108*E108 -> R73,675.20
A110: Total Carried Forward To Summary | F110: =SUM(F7:F108) -> R1,484,970.10
A113: 2.0 ACCOMMODATION OF TRAFFIC
A114: Item | B114: Description | C114: Unit | D114: Quantity | E114: Rate | F114: Amount R
B115: Establishment of Traffic Accomodation
A117: 2.1 | B117: Preparation, submission and approval of traffic control plan prior to commencement of works | C117: Sum | D117: 1
A119: 2.2 | B119: Supply, erect and commission all temporary road signs, cones, delineators, traffic stations and associated traffic control measures at all construction zones along the access road and intersections; compliant with SARTSM for pedestrians, vehicular traffic and non-motorised traffic | C119: Sum | D119: 1
A121: 2.3 | B121: Flagmen | C121: Month | D121: 3 | E121: 750 | F121: =D121*E121 -> R2,250.00
A123: 2.4 | B123: Traffic controllers | C123: Month | D123: 3 | E123: 750 | F123: =D123*E123 -> R2,250.00
A125: 2.5 | B125: Traffic safety officer | C125: Month | D125: 3 | E125: 80000 | F125: =D125*E125 -> R240,000.00
A127: 2.6 | B127: Traffic safety vehicle | C127: Month | D127: 3 | E127: 125000 | F127: =D127*E127 -> R375,000.00
B129: Additional traffic accommodation facilities ordered by the Engineer:
A131: 2.7 | B131: Provision of additional traffic accommodation facilities | C131: Sum | D131: 1
A133: 2.8 | B133: Liaison with traffic authorities | C133: Month | D133: 3 | E133: 0
B135: Destablishment of Traffic Accomodation
A137: 2.9 | B137: Remove, dismantle and clear all temporary traffic signs, cones, barriers, delineators and solid barricading from site on completion of works; reinstate road shoulders and verges disturbed by traffic accommodation to acceptable condition | C137: Sum | D137: 1
A140: Total Carried Forward To Summary | F140: =SUM(F138:F138) -> 0
A143: 3.0 CLEARING AND GRUBBING
A144: Item | B144: Description | C144: Unit | D144: Quantity | E144: Rate | F144: Amount R
B145: Clearing and Grubbing
B147: Notes:
B149: All cleared material and surplus topsoil to be removed to approved spoil sites identified and provided by the Contractor
B151: All costs for loading, hauling and tipping to approved spoil sites to be included in respective item rates
B153: Clearing and Grubbing - Greenfield Operational Areas
A155: 3.1 | B155: Clear and grub new tarpaulin removal area; includes all vegetation, debris, trees and obstructions | C155: m2 | D155: 3000
A157: 3.2 | B157: Clear and grub new staging area | C157: m2 | D157: 4000
A159: 3.3 | B159: Clear and grub laydown area | C159: m2 | D159: 1000
B161: Removal and grubbing of large trees and tree stumps:
A163: 3.4 | B163: Girth equal to or exceeding 1,0 m up to and including 2,0 m (quantities are provisional) | C163: No | D163: 20 | E163: 1500 | F163: =D163*E163 -> R30,000.00
B165: Existing services location, detection and verification:
A167: 3.5 | B167: Using hand excavation to locate, expose and verify services | C167: m³ | D167: 500 | E167: 750 | F167: R375,000.00
A169: Total Carried Forward | F169: =SUM(F145:F168) -> R405,000.00
A171: 4.0 DRAINS
A172: Item | B172: Description | C172: Unit | D172: Quantity | E172: Rate | F172: Amount R
B173: Notes:
B174: All drain types, positions, gradients and dimensions to be confirmed by Contractor's approved Geometric and Stormwater Design Report signed by ECSA Pr.Eng
B176: All stormwater drainage to connect to Arnot Power Station CSY drainage network
B178: All drains to achieve continuous uniform fall free from ponding and obstructions
B180: Stone pitching to comply with COTO (2020) grouted stone pitching specification
B182: Trapezoidal Earth Side Drains
A184: 4.1 | B184: Excavate, shape and compact trapezoidal earth side drains along both sides of new road carriageway; achieve continuous, uniform fall free from ponding and obstructions; spread and compact suitable excess material on adjacent embankments; connect to CSY drainage network | C184: m³ | D184: 2500
B186: Mitre Drains
A188: 4.2 | B188: Construct mitre drains at approximately 50m intervals along both sides of the road, tarpaulin removal area, laydown area and staging area, or at natural low points; at angle of approximately 30° downslope from side drain to efficiently discharge surface runoff into surrounding natural ground without causing erosion as per. Rate includes all excavation, shaping and finishing to neat uniform profile | C188: No | D188: 10
B190: Stone Pitched Aprons
A192: 4.3 | B192: Construct grouted stone-pitched aprons at mitre drain discharge points where erosion potential is high; supply stone, mortar grouting and all finishing to neat appearance as per. Rate includes all materials, labour and grouting | C192: m2 | D192: 70
B194: CSY Drainage Network Connection
A196: 4.4 | B196: Connect completed stormwater drainage system to Arnot Power Station Coal Stockyard drainage network; including all excavation, pipework, connections, structures and all associated works required. | C196: Sum | D196: 1
A198: 4.5 | B198: Loading and hauling of material in excess of 1,0 km | C198: m³-km | D198: 3 | E198: 8.00 | F198: =D198*E198 -> R24.00
A200: Total Carried Forward To Summary | F200: =SUM(F198:F199) -> R24.00
A202: 5.0 CULVERTS
A203: Item | B203: Description | C203: Unit | D203: Quantity | E203: Rate | F203: Amount R
B204: CULVERTS
B205: Notes:
B206: All culvert types, sizes and positions to be confirmed by Contractor's approved Geometric and Stormwater Design Report
B208: Stone pitching to comply with COTO (2020)
B210: Backfill to be compacted to minimum 90% Mod AASHTO density
B212: The rate for culvert structural members shall be inclusive of all materials including reinforcement
B214: Quantities are provisional pending geometric and stormwater design
A216: 5.1 | B216: Excavation for culvert structures to required depth and width; trim and shape invert; batter sides where necessary to prevent collapse; dispose of surplus material to approved spoil sites | C216: m³ | D216: 70
A218: 5.2 | B218: Backfill using imported G5 quality gravel material from commercial source, in layers not exceeding 150mm; compact to minimum 90% Mod AASHTO | C218: m³ | D218: 25 | E218: 600 | F218: =D218*E218 -> R15,000.00
B220: Concrete pipe culverts:
A222: 5.3 | B222: Supply and install precast concrete pipe culvert, DN300 (spigot-and-socket with elastomeric seal, SANS 986/677 compliant), laid to line and level. Item includes all pipe sections and jointing materials for one completed road crossing | C222: m | D222: 200
A224: 5.4 | B224: Provide and lay granular Class B bedding and haunching to culvert pipes | C224: m | D224: 200
A226: 5.5 | B226: Construct in-situ reinforced concrete headwalls and wingwalls to all culverts; including all excavation, formwork, steel reinforcement | C226: No | D226: 20
A228: 5.6 | B228: Construct grouted stone pitching at culvert inlets and outlets to prevent scouring; compliant with COTO (2020) | C228: m2 | D228: 70
A230: 5.7 | B230: Geotextile separator (Class A2/A3) under mitre drain aprons | C230: m2 | D230: 70 | E230: 25 | F230: R1,750.00
A232: 5.8 | B232: Loading and hauling of material in excess of 1.0km arising from culvert excavations and associated works | C232: m³ | D232: 70
A235: Total Carried Forward Summary | F235: =SUM(F204:F234) -> R16,750.00
A237: 6.0 EXCAVATION
A238: Item | B238: Description | C238: Unit | D238: Quantity | E238: Rate | F238: Amount R
B239: EXCAVATION
B241: Excavating material by using conventional road construction equipment, to spoil in sites designated by the Contractor
A243: 6.1 | B243: Natural gravel and sand materials | C243: m³ | D243: 10000 | E243: 40 | F243: =D243*E243 -> R400,000.00
A245: 6.2 | B245: Coarse fill and rock fill | C245: m³ | D245: 1000 | E245: 250 | F245: =D245*E245 -> R250,000.00
A247: 6.3 | B247: Removal of oversize material | C247: m³ | D247: 1500 | E247: 100 | F247: =D247*E247 -> R150,000.00
B249: Excavating material by using labour enhanced methods of construction:
A251: 6.4 | B251: Natural gravel and sand materials | C251: m³ | D251: 500 | E251: 750 | F251: R375,000.00
B253: Stockpiling of road layer materials:
A255: 6.5 | B255: Natural gravel material | C255: m³ | D255: =SUM(D276:D282) -> 10000 | E255: 55 | F255: R550,000.00
A261: Total Carried Forward To Summary | F261: =SUM(F239:F260) -> R1,725,000.00
A264: 7.0 COMMERCIAL MATERIALS
A265: Item | B265: Description | C265: Unit | D265: Quantity | E265: Rate | F265: Amount R
B266: Notes:
B268: This Bill covers supply and delivery only of all material
B270: All materials to be tested by SANAS-accredited laboratory prior to delivery on site
B272: No material to be delivered without written approval from Eskom's Engineer
B274: Granular Materials
A276: 7.1 | B276: G7 quality gravel | C276: m³ | D276: 3000
A278: 7.2 | B278: G6 Gravel quality gravel | C278: m³ | D278: 1000
A280: 7.3 | B280: G5 Gravel for C4 Base Layer | C280: m³ | D280: 3000
A282: 7.4 | B282: G5 Gravel for Wearing Course | C282: m³ | D282: 3000
B284: Stabilisation Materials
A286: 7.5 | B286: Supply Portland composite cement CEM II 32.5N for C4 chemical stabilisation | C286: t | D286: 100
B288: Bituminous Materials
A290: 7.6 | B290: Supply CAT 65 spray-grade bituminous emulsion (SS60) for fog spray application | C290: t | D290: 2.5
B292: Laydown Area Materials
A294: 7.7 | B294: Supply and haul to site well-graded clean river sand for 25mm bedding layer in laydown area | C294: m³ | D294: 30
A296: 7.8 | B296: Supply 60mm interlocking concrete block pavers; compliant with SANS 1058; Class 30/2.0 MPa (compressive/tensile strength); Type Class S-A (interlocking on all sides) | C296: m2 | D296: 1000
A298: 7.9 | B298: Supply precast concrete kerbs (E1 profile - 75x150) for edge restraints along perimeter of laydown area | C298: m | D298: 130
A300: 7.10 | B300: Supply ready-mix concrete 20MPa for kerb bedding and backing to precast concrete kerbs | C300: m³ | D300: 5
A303: Total Carried Forward To Summary | F303: =SUM(F266:F302) -> 0
A305: 8.0 ROADBED
A306: Item | B306: Description | C306: Unit | D306: Quantity | E306: Rate | F306: Amount R
B307: ROADBED PREPARATION
B308: Notes:
A311: 8.1 | B311: In-situ treatment by ripping and re-compaction to a minimum of 90% Mod AASHTO | C311: m³ | D311: 3000 | E311: 75 | F311: =D311*E311 -> R225,000.00
A313: 8.2 | B313: Construction of roadbed comprising a pioneer layer | C313: m³ | D313: 1500 | E313: 450 | F313: R675,000.00
A315: Total Carried Forward To Summary | F315: =SUM(F307:F314) -> R900,000.00
A317: 9.0 ROAD PAVEMENT LAYERS
A318: Item | B318: Description | C318: Unit | D318: Quantity | E318: Rate | F318: Amount R
B319: ROAD PAVEMENT LAYERS
B321: Notes:
B322: This Bill covers placing, compacting of G7 selected layer, G6 subbase layer, G5 wearing course and fog spray
B324: All layers to be proof rolled after compaction by Contractor's Engineer prior to placing next layer
A326: 9.1 | B326: Compiling and implementing M&U plans for the construction of all the pavement layers | C326: No | D326: 3 | E326: 10000 | F326: =D326*E326 -> R30,000.00
B328: Construction of pavement layers:
B330: Roadway
A332: 9.2 | B332: Lower G7 selected subgrade layer (150mm) compacted to 93% Mod AASHTO | C332: m³ | D332: 2000
A334: 9.3 | B334: Lower G5 subbase gravel layer (chemically stabilised to achieve a 150mm C4 layer) compacted to 95% Mod AASHTO | C334: m³ | D334: 2000
A336: 9.4 | B336: Gravel wearing course layer 150mm compacted to 95% Mod AASHTO | C336: m³ | D336: 2000
B338: Tarpaulin Removal Area and Staging Area
A340: 9.5 | B340: Lower G7 selected subgrade layer (150mm) compacted to 93% Mod AASHTO | C340: m³ | D340: 1100
A342: 9.6 | B342: Upper G6 selected subgrade layer (150mm) compacted to 95% Mod AASHTO | C342: m³ | D342: 1100
A344: 9.7 | B344: Lower G5 subbase gravel layer (chemically stabilised to achieve a 150mm C4 layer) compacted to 95% Mod AASHTO | C344: m³ | D344: 1100
A346: 9.8 | B346: Gravel wearing course layer 150mm compacted to 95% Mod AASHTO | C346: m³ | D346: 1100
B348: Laydown Area
A350: 9.9 | B350: Lower G5 subbase gravel layer (unstabilised) (200mm) compacted to 95% Mod AASHTO | C350: m³ | D350: 200
B352: Bituminous fog spray
A354: 9.10 | B354: Application of bituminous fog spray (SS60) at 1%–1.5% by mass of dry aggregate over G5 wearing course; spray content verified and approved by Contractor's Engineer. | C354: m² | D354: 3000
A358: Total Carried Forward Summary | F358: =SUM(F319:F357) -> R30,000.00
A360: 10.0 STABILISATION
A361: Item | B361: Description | C361: Unit | D361: Quantity | E361: Rate | F361: Amount R
B362: STABILISATION
B364: Notes:
B366: This Bill covers mixing, placing and compacting of C4 chemically stabilised base layer only
B368: Material supply (G5 gravel and CEM II cement) covered elsewhere
B370: Minimum 7-day curing period to be allowed for all C4 layers before placing wearing course
B372: Chemical stabilisation:
A374: 10.1 | B374: Chemical stabilisation of 150mm C4 base layer | C374: m³ | D374: 3000 | E374: 20 | F374: =D374*E374 -> R60,000.00
B376: Cementitious stabilisation agents for pavement layers:
A378: 10.2 | B378: Addition of cementitious stabilisation agents for pavement layers and spreading the agent using bags and labour enhancement methods:
A380: 10.3 | B380: Cement (for subbase layer) | C380: t | D380: 100 | E380: 200 | F380: =D380*E380 -> R20,000.00
A382: 10.4 | B382: Provision and application of water for curing | C382: kℓ | D382: 250 | E382: 40 | F382: R10,000.00
A385: Total Carried Forward Summary | F385: =SUM(F362:F384) -> R90,000.00
A388: 11.0 SEGMENTAL BLOCK PAVING LAYERS
A389: Item | B389: Description | C389: Unit | D389: Quantity | E389: Rate | F389: Amount R
... 100 more rows

Sheet BOQ
A2: 1.0 PRELIMINARIES AND GENERAL
A3: Item | B3: Description | C3: Unit | D3: Quantity | E3: Rate | F3: Amount R
B4: CONTRACTOR’S SITE ESTABLISHMENT AND GENERAL OBLIGATIONS
B6: The Contractor's general obligations:
B8: Fixed-Charge and Value Related Items
B10: Site Establishment
B11: Establishment of site offices, ablutions, secure storage, and utility connections.
A13: 1.1 | B13: Transport of all plant and equipment to site | C13: Once Off | D13: 1
A15: 1.2 | B15: Site offices, ablutions, changing room, eating area, storage and signage | C15: Once Off | D15: 1
A17: 1.3 | B17: Temporary utillity connections | C17: Once Off | D17: 1
B19: Safety:
B21: SHE REQUIREMENTS (Compliance with Eskom induction and safety, health and environmental requirements)
B23: Items listed are indicative minimums only. Final PPE selection must be confirmed through a site-specific OHS Risk Assessment as required by the OHS Act No. 85 of 1993 and Section 3.1.2 of Eskom PPE Standard 240-44175132.
A25: 1.4 | B25: Health and safety file | C25: Once Off | D25: 1
A27: 1.5 | B27: Occupational health medicals (pre-employment) | C27: No | D27: 30
A29: 1.6 | B29: Police Clearance Certificates (SAPS) | C29: No | D29: 30
A31: 1.7 | B31: Hard hat (white, industrial, SABS mark), with adjustable 3-point webbing chin strap, shortened peak per Section 3.13.1, compliant with SANS 139 | C31: No | D31: 30
A33: 1.8 | B33: Sun brim for hard hat, navy blue, 100% cotton flame retardant D59, minimum 90mm brim per Section 3.13.2 | C33: No | D33: 30
A35: 1.9 | B35: General safety boots, steel/carbon fibre toe, full grain leather, dark brown, oil/slip/heat resistant, SABS SANS 20345 | C35: No | D35: 30
A37: 1.10 | B37: Reflective vest (fluorescent orange-red, for "Employee at Work" category), minimum 50mm retro-reflective tape, SANS 50471 compliant per Section 3.10 | C37: No | D37: 30
A39: 1.11 | B39: Dust mask FFP2 with valve, disposable, EN 149:2001+A1 2009 FFP2 NR D, protection factor 10x WEL per Section 3.19.1 | C39: No | D39: 30
A41: 1.12 | B41: Safety spectacles/goggles, impact/dust resistant, anti-fog, anti-scratch, ANSI Z87.1 and CE-EN 166 compliant per Section 3.14.3 | C41: No | D41: 30
A43: 1.13 | B43: Hearing protection — disposable foam earplugs, corded, 32 NRR ANSI, slow expanding PU foam per Section 3.15 | C43: No | D43: 30
A45: 1.14 | B45: Hearing protection — earmuffs, dielectric construction, SNR 30 NRR 28, CE compliant per Section 3.15 | C45: No | D45: 30
A47: 1.15 | B47: Two-piece boiler suit, navy blue (Pantone 19_3920), pre-shrunk 100% cotton D59, flame & acid retardant SANS 1423-1 class C cat 1, reflective strips, SANS | C47: No | D47: 30
A49: 1.16 | B49: General purpose gloves, cut-resistant, micro-foam nitrile coated, EN 388 minimum level 3 cut resistance per Section 3.17.2 | C49: No | D49: 30
A51: 1.17 | B51: Socks, non-conductive, anti-static, anti-bacterial, 72-75% cotton/poly/silver fibre per Section 3.16.9 | C51: No | D51: 30
A53: 1.18 | B53: Gumboots, solid rubber/PU, black, protective toe cap, acid/oil resistant, SANS 20345 per Section 3.16.7 | C53: No | D53: 30
A55: 1.19 | B55: Provision of reflective safety vests for visitors | C55: No | D55: 5
A57: 1.20 | B57: Provision of hard hats for visitors | C57: No | D57: 5
B59: Survey, Setting Out & Design
A61: 1.21 | B61: Detailed topographical survey of entire site including setting out, establishment of control points and demarcation of road alignment and centreline | C61: Sum | D61: 1
A63: 1.22 | B63: Preparation, submission and approval of Geometric and Stormwater Design Report (PDF, DWG and A0 hardcopies), signed by ECSA Pr.Eng | C63: Sum | D63: 1
A65: 1.23 | B65: Preparation and submission of As-built Drawings (PDF, DWG compatible with Bentley MicroStation and A0 hardcopies) signed by Contractor's Engineer on completion | C65: Sum | D65: 1
A67: 1.24 | B67: Preparation and submission of Rubicon Toolbox Pavement Design Verification Report including capacity analysis, traffic loading, climate and material properties, signed by ECSA Pr.Eng | C67: Sum | D67: 1
B69: Documentation & Compliance
A71: 1.25 | B71: Preparation and submission of Skills Transfer and Training documentation including attendance records and topics covered | C71: Sum | D71: 1
A73: 1.26 | B73: Preparation, submission and approval of Quality Control Plan (QCP) prior to commencement of works | C73: Sum | D73: 1
A75: 1.27 | B75: Obtaining, submitting and managing all Telkom and other service provider wayleave approvals including liaison, relocation of poles and raising of overhead cables | C75: Sum | D75: 1
A77: 1.28 | B77: Preparation and submission of Material and Test Summary Dossier (comprehensive laboratory and field test results in PDF format) | C77: Sum | D77: 1
A79: 1.29 | B79: Preparation and submission of Rehabilitation and Environmental Compliance Report signed by Eskom Environmental Officer and Contractor's Engineer | C79: Sum | D79: 1
A81: 1.30 | B81: Appointment of SANAS-accredited laboratory for all material testing and field density testing for the full duration of the works | C81: Sum | D81: 1
A83: 1.31 | B83: Site De-establishment | C83: Once Off | D83: 1
A85: 1.32 | B85: Transport of all plant and equipment off site | C85: Once Off | D85: 1
A87: 1.33 | B87: Exit medicals | C87: Once Off | D87: 1
B89: Time-related obligations - Contractual Requirements
B91: Environmental Management:
A93: 1.34 | B93: Monitoring of compliance with and reporting on the EMP | C93: Month | D93: 12
B96: Monthly running cost of site offices, ablutions, secure storage, and utility connections.
A98: 1.35 | B98: Site offices, ablutions, change room, eating area and storage - monthly rental/maintenance | C98: Month | D98: 12
A100: 1.36 | B100: Temporary utillity connections | C100: Month | D100: 12
A102: 1.37 | B102: ECSA Professionally Registered Engineer (Pr.Eng), minimum 5 years road construction and maintenance experience post-registration | C102: Month | D102: 12
A104: 1.38 | B104: Construction Manager | C104: Month | D104: 12
A106: 1.39 | B106: Health and Safety Officer | C106: Month | D106: 12
A108: 1.40 | B108: Site Agent/Supervisor | C108: Month | D108: 12
A110: Total Carried Forward To Summary
A113: 2.0 ACCOMMODATION OF TRAFFIC
A114: Item | B114: Description | C114: Unit | D114: Quantity | E114: Rate | F114: Amount R
B115: Establishment of Traffic Accomodation
A117: 2.1 | B117: Preparation, submission and approval of traffic control plan prior to commencement of works | C117: Sum | D117: 1
A119: 2.2 | B119: Supply, erect and commission all temporary road signs, cones, delineators, traffic stations and associated traffic control measures at all construction zones along the access road and intersections; compliant with SARTSM for pedestrians, vehicular traffic and non-motorised traffic | C119: Sum | D119: 1
A121: 2.3 | B121: Flagmen | C121: Month | D121: 12
A123: 2.4 | B123: Traffic controllers | C123: Month | D123: 12
A125: 2.5 | B125: Traffic safety officer | C125: Month | D125: 12
A127: 2.6 | B127: Traffic safety vehicle | C127: Month | D127: 12
B129: Additional traffic accommodation facilities ordered by the Engineer:
A131: 2.7 | B131: Provision of additional traffic accommodation facilities | C131: Sum | D131: 1
A133: 2.8 | B133: Liaison with traffic authorities | C133: Month | D133: 12
B135: Destablishment of Traffic Accomodation
A137: 2.9 | B137: Remove, dismantle and clear all temporary traffic signs, cones, barriers, delineators and solid barricading from site on completion of works; reinstate road shoulders and verges disturbed by traffic accommodation to acceptable condition | C137: Sum | D137: 1
A140: Total Carried Forward To Summary
A143: 3.0 CLEARING AND GRUBBING
A144: Item | B144: Description | C144: Unit | D144: Quantity | E144: Rate | F144: Amount R
B145: Clearing and Grubbing
B147: Notes:
B149: All cleared material and surplus topsoil to be removed to approved spoil sites identified and provided by the Contractor
B151: All costs for loading, hauling and tipping to approved spoil sites to be included in respective item rates
B153: Clearing and Grubbing - Greenfield Operational Areas
A155: 3.1 | B155: Clear and grub new tarpaulin removal area; includes all vegetation, debris, trees and obstructions | C155: m2 | D155: 3000
A157: 3.2 | B157: Clear and grub new staging area | C157: m2 | D157: 4000
A159: 3.3 | B159: Clear and grub laydown area | C159: m2 | D159: 1000
B161: Removal and grubbing of large trees and tree stumps:
A163: 3.4 | B163: Girth equal to or exceeding 1,0 m up to and including 2,0 m (quantities are provisional) | C163: No | D163: 20
B165: Existing services location, detection and verification:
A167: 3.5 | B167: Using hand excavation to locate, expose and verify services | C167: m³ | D167: 500
A169: Total Carried Forward
A171: 4.0 DRAINS
A172: Item | B172: Description | C172: Unit | D172: Quantity | E172: Rate | F172: Amount R
B173: Notes:
B174: All drain types, positions, gradients and dimensions to be confirmed by Contractor's approved Geometric and Stormwater Design Report signed by ECSA Pr.Eng
B176: All stormwater drainage to connect to Arnot Power Station CSY drainage network
B178: All drains to achieve continuous uniform fall free from ponding and obstructions
B180: Stone pitching to comply with COTO (2020) grouted stone pitching specification
B182: Trapezoidal Earth Side Drains
A184: 4.1 | B184: Excavate, shape and compact trapezoidal earth side drains along both sides of new road carriageway; achieve continuous, uniform fall free from ponding and obstructions; spread and compact suitable excess material on adjacent embankments; connect to CSY drainage network | C184: m³ | D184: 2500
B186: Mitre Drains
A188: 4.2 | B188: Construct mitre drains at approximately 50m intervals along both sides of the road, tarpaulin removal area, laydown area and staging area, or at natural low points; at angle of approximately 30° downslope from side drain to efficiently discharge surface runoff into surrounding natural ground without causing erosion as per. Rate includes all excavation, shaping and finishing to neat uniform profile | C188: No | D188: 10
B190: Stone Pitched Aprons
A192: 4.3 | B192: Construct grouted stone-pitched aprons at mitre drain discharge points where erosion potential is high; supply stone, mortar grouting and all finishing to neat appearance as per. Rate includes all materials, labour and grouting | C192: m2 | D192: 70
B194: CSY Drainage Network Connection
A196: 4.4 | B196: Connect completed stormwater drainage system to Arnot Power Station Coal Stockyard drainage network; including all excavation, pipework, connections, structures and all associated works required. | C196: Sum | D196: 1
A198: 4.5 | B198: Loading and hauling of material in excess of 1,0 km | C198: m³-km | D198: 3
A200: Total Carried Forward To Summary
A202: 5.0 CULVERTS
A203: Item | B203: Description | C203: Unit | D203: Quantity | E203: Rate | F203: Amount R
B204: CULVERTS
B205: Notes:
B206: All culvert types, sizes and positions to be confirmed by Contractor's approved Geometric and Stormwater Design Report
B208: Stone pitching to comply with COTO (2020)
B210: Backfill to be compacted to minimum 90% Mod AASHTO density
B212: The rate for culvert structural members shall be inclusive of all materials including reinforcement
B214: Quantities are provisional pending geometric and stormwater design
A216: 5.1 | B216: Excavation for culvert structures to required depth and width; trim and shape invert; batter sides where necessary to prevent collapse; dispose of surplus material to approved spoil sites | C216: m³ | D216: 70
A218: 5.2 | B218: Backfill using imported G5 quality gravel material from commercial source, in layers not exceeding 150mm; compact to minimum 90% Mod AASHTO | C218: m³ | D218: 25
B220: Concrete pipe culverts:
A222: 5.3 | B222: Supply and install precast concrete pipe culvert, DN300 (spigot-and-socket with elastomeric seal, SANS 986/677 compliant), laid to line and level. Item includes all pipe sections and jointing materials for one completed road crossing | C222: m | D222: 200
A224: 5.4 | B224: Provide and lay granular Class B bedding and haunching to culvert pipes | C224: m | D224: 200
A226: 5.5 | B226: Construct in-situ reinforced concrete headwalls and wingwalls to all culverts; including all excavation, formwork, steel reinforcement | C226: No | D226: 20
A228: 5.6 | B228: Construct grouted stone pitching at culvert inlets and outlets to prevent scouring; compliant with COTO (2020) | C228: m2 | D228: 70
A230: 5.7 | B230: Geotextile separator (Class A2/A3) under mitre drain aprons | C230: m2 | D230: 70
A232: 5.8 | B232: Loading and hauling of material in excess of 1.0km arising from culvert excavations and associated works | C232: m³ | D232: 70
A235: Total Carried Forward Summary
A237: 6.0 EXCAVATION
A238: Item | B238: Description | C238: Unit | D238: Quantity | E238: Rate | F238: Amount R
B239: EXCAVATION
B241: Excavating material by using conventional road construction equipment, to spoil in sites designated by the Contractor
A243: 6.1 | B243: Natural gravel and sand materials | C243: m³ | D243: 10000
A245: 6.2 | B245: Coarse fill and rock fill | C245: m³ | D245: 1000
A247: 6.3 | B247: Removal of oversize material | C247: m³ | D247: 1500
B249: Excavating material by using labour enhanced methods of construction:
A251: 6.4 | B251: Natural gravel and sand materials | C251: m³ | D251: 500
B253: Stockpiling of road layer materials:
A255: 6.5 | B255: Natural gravel material | C255: m³ | D255: =SUM(D274:D280) -> 10000
A259: Total Carried Forward To Summary
A262: 7.0 COMMERCIAL MATERIALS
A263: Item | B263: Description | C263: Unit | D263: Quantity | E263: Rate | F263: Amount R
B264: Notes:
B266: This Bill covers supply and delivery only of all material
B268: All materials to be tested by SANAS-accredited laboratory prior to delivery on site
B270: No material to be delivered without written approval from Eskom's Engineer
B272: Granular Materials
A274: 7.1 | B274: G7 quality gravel | C274: m³ | D274: 3000
A276: 7.2 | B276: G6 Gravel quality gravel | C276: m³ | D276: 1000
A278: 7.3 | B278: G5 Gravel for C4 Base Layer | C278: m³ | D278: 3000
A280: 7.4 | B280: G5 Gravel for Wearing Course | C280: m³ | D280: 3000
B282: Stabilisation Materials
A284: 7.5 | B284: Supply Portland composite cement CEM II 32.5N for C4 chemical stabilisation | C284: t | D284: 100
B286: Bituminous Materials
A288: 7.6 | B288: Supply CAT 65 spray-grade bituminous emulsion (SS60) for fog spray application | C288: t | D288: 2.5
B290: Laydown Area Materials
A292: 7.7 | B292: Supply and haul to site well-graded clean river sand for 25mm bedding layer in laydown area | C292: m³ | D292: 30
A294: 7.8 | B294: Supply 60mm interlocking concrete block pavers; compliant with SANS 1058; Class 30/2.0 MPa (compressive/tensile strength); Type Class S-A (interlocking on all sides) | C294: m2 | D294: 1000
A296: 7.9 | B296: Supply precast concrete kerbs (E1 profile - 75x150) for edge restraints along perimeter of laydown area | C296: m | D296: 130
A298: 7.10 | B298: Supply ready-mix concrete 20MPa for kerb bedding and backing to precast concrete kerbs | C298: m³ | D298: 5
A301: Total Carried Forward To Summary
A303: 8.0 ROADBED
A304: Item | B304: Description | C304: Unit | D304: Quantity | E304: Rate | F304: Amount R
B305: ROADBED PREPARATION
B306: Notes:
A309: 8.1 | B309: In-situ treatment by ripping and re-compaction to a minimum of 90% Mod AASHTO | C309: m³ | D309: 3000
A311: 8.2 | B311: Construction of roadbed comprising a pioneer layer | C311: m³ | D311: 1500
A313: Total Carried Forward To Summary
A315: 9.0 ROAD PAVEMENT LAYERS
A316: Item | B316: Description | C316: Unit | D316: Quantity | E316: Rate | F316: Amount R
B317: ROAD PAVEMENT LAYERS
B319: Notes:
B320: This Bill covers placing, compacting of G7 selected layer, G6 subbase layer, G5 wearing course and fog spray
B322: All layers to be proof rolled after compaction by Contractor's Engineer prior to placing next layer
A324: 9.1 | B324: Compiling and implementing M&U plans for the construction of all the pavement layers | C324: No | D324: 3
B326: Construction of pavement layers:
B328: Roadway
A330: 9.2 | B330: Lower G7 selected subgrade layer (150mm) compacted to 93% Mod AASHTO | C330: m³ | D330: 2000
A332: 9.3 | B332: Lower G5 subbase gravel layer (chemically stabilised to achieve a 150mm C4 layer) compacted to 95% Mod AASHTO | C332: m³ | D332: 2000
A334: 9.4 | B334: Gravel wearing course layer 150mm compacted to 95% Mod AASHTO | C334: m³ | D334: 2000
B336: Tarpaulin Removal Area and Staging Area
A338: 9.5 | B338: Lower G7 selected subgrade layer (150mm) compacted to 93% Mod AASHTO | C338: m³ | D338: 1100
A340: 9.6 | B340: Upper G6 selected subgrade layer (150mm) compacted to 95% Mod AASHTO | C340: m³ | D340: 1100
A342: 9.7 | B342: Lower G5 subbase gravel layer (chemically stabilised to achieve a 150mm C4 layer) compacted to 95% Mod AASHTO | C342: m³ | D342: 1100
A344: 9.8 | B344: Gravel wearing course layer 150mm compacted to 95% Mod AASHTO | C344: m³ | D344: 1100
B346: Laydown Area
A348: 9.9 | B348: Lower G5 subbase gravel layer (unstabilised) (200mm) compacted to 95% Mod AASHTO | C348: m³ | D348: 200
B350: Bituminous fog spray
A352: 9.10 | B352: Application of bituminous fog spray (SS60) at 1%–1.5% by mass of dry aggregate over G5 wearing course; spray content verified and approved by Contractor's Engineer. | C352: m² | D352: 3000
A356: Total Carried Forward Summary
A358: 10.0 STABILISATION
A359: Item | B359: Description | C359: Unit | D359: Quantity | E359: Rate | F359: Amount R
B360: STABILISATION
B362: Notes:
B364: This Bill covers mixing, placing and compacting of C4 chemically stabilised base layer only
B366: Material supply (G5 gravel and CEM II cement) covered elsewhere
B368: Minimum 7-day curing period to be allowed for all C4 layers before placing wearing course
B370: Chemical stabilisation:
A372: 10.1 | B372: Chemical stabilisation of 150mm C4 base layer: Addition of cementitious stabilisation agents for pavement layers and spreading the agent using bags and labour enhancement methods | C372: m³ | D372: 3000
B374: Cementitious stabilisation agents for pavement layers:
A376: 10.2 | B376: Cement (for subbase layer) | C376: t | D376: 100
A378: 10.3 | B378: Provision and application of water for curing | C378: kℓ | D378: 250
A381: Total Carried Forward Summary
A384: 11.0 SEGMENTAL BLOCK PAVING LAYERS
A385: Item | B385: Description | C385: Unit | D385: Quantity | E385: Rate | F385: Amount R
B386: SEGMENTAL BLOCK PAVING LAYERS
... 99 more rows

Sheet BOQ_grids (hidden)
A2: 1.0 PRELIMINARIES AND GENERAL
A3: Item | B3: Description | C3: Unit | D3: Quantity | E3: Rate | F3: Amount R
B4: CONTRACTOR’S SITE ESTABLISHMENT AND GENERAL OBLIGATIONS
B6: The Contractor's general obligations:
B8: Fixed-Charge and Value Related Items
B10: Site Establishment
B11: Establishment of site offices, ablutions, secure storage, and utility connections.
A13: 1.1 | B13: Transport of all plant and equipment to site | C13: Once Off | D13: 1
A15: 1.2 | B15: Site offices, ablutions, changing room, eating area, storage and signage | C15: Once Off | D15: 1
A17: 1.3 | B17: Temporary utillity connections | C17: Once Off | D17: 1
B19: Safety:
B21: SHE REQUIREMENTS (Compliance with Eskom induction and safety, health and environmental requirements)
B23: Items listed are indicative minimums only. Final PPE selection must be confirmed through a site-specific OHS Risk Assessment as required by the OHS Act No. 85 of 1993 and Section 3.1.2 of Eskom PPE Standard 240-44175132.
A25: 1.4 | B25: Health and safety file | C25: Once Off | D25: 1
A27: 1.5 | B27: Occupational health medicals (pre-employment) | C27: No | D27: 30
A29: 1.6 | B29: Police Clearance Certificates (SAPS) | C29: No | D29: 30
A31: 1.7 | B31: Hard hat (white, industrial, SABS mark), with adjustable 3-point webbing chin strap, shortened peak per Section 3.13.1, compliant with SANS 139 | C31: No | D31: 30
A33: 1.8 | B33: Sun brim for hard hat, navy blue, 100% cotton flame retardant D59, minimum 90mm brim per Section 3.13.2 | C33: No | D33: 30
A35: 1.9 | B35: General safety boots, steel/carbon fibre toe, full grain leather, dark brown, oil/slip/heat resistant, SABS SANS 20345 | C35: No | D35: 30
A37: 1.10 | B37: Reflective vest (fluorescent orange-red, for "Employee at Work" category), minimum 50mm retro-reflective tape, SANS 50471 compliant per Section 3.10 | C37: No | D37: 30
A39: 1.11 | B39: Dust mask FFP2 with valve, disposable, EN 149:2001+A1 2009 FFP2 NR D, protection factor 10x WEL per Section 3.19.1 | C39: No | D39: 30
A41: 1.12 | B41: Safety spectacles/goggles, impact/dust resistant, anti-fog, anti-scratch, ANSI Z87.1 and CE-EN 166 compliant per Section 3.14.3 | C41: No | D41: 30
A43: 1.13 | B43: Hearing protection — disposable foam earplugs, corded, 32 NRR ANSI, slow expanding PU foam per Section 3.15 | C43: No | D43: 30
A45: 1.14 | B45: Hearing protection — earmuffs, dielectric construction, SNR 30 NRR 28, CE compliant per Section 3.15 | C45: No | D45: 30
A47: 1.15 | B47: Two-piece boiler suit, navy blue (Pantone 19_3920), pre-shrunk 100% cotton D59, flame & acid retardant SANS 1423-1 class C cat 1, reflective strips, SANS | C47: No | D47: 30
A49: 1.16 | B49: General purpose gloves, cut-resistant, micro-foam nitrile coated, EN 388 minimum level 3 cut resistance per Section 3.17.2 | C49: No | D49: 30
A51: 1.17 | B51: Socks, non-conductive, anti-static, anti-bacterial, 72-75% cotton/poly/silver fibre per Section 3.16.9 | C51: No | D51: 30
A53: 1.18 | B53: Gumboots, solid rubber/PU, black, protective toe cap, acid/oil resistant, SANS 20345 per Section 3.16.7 | C53: No | D53: 30
A55: 1.19 | B55: Provision of reflective safety vests for visitors | C55: No | D55: 5
A57: 1.20 | B57: Provision of hard hats for visitors | C57: No | D57: 5
B59: Survey, Setting Out & Design
A61: 1.21 | B61: Detailed topographical survey of entire site including setting out, establishment of control points and demarcation of road alignment and centreline | C61: Sum | D61: 1
A63: 1.22 | B63: Preparation, submission and approval of Geometric and Stormwater Design Report (PDF, DWG and A0 hardcopies), signed by ECSA Pr.Eng | C63: Sum | D63: 1
A65: 1.23 | B65: Preparation and submission of As-built Drawings (PDF, DWG compatible with Bentley MicroStation and A0 hardcopies) signed by Contractor's Engineer on completion | C65: Sum | D65: 1
A67: 1.24 | B67: Preparation and submission of Rubicon Toolbox Pavement Design Verification Report including capacity analysis, traffic loading, climate and material properties, signed by ECSA Pr.Eng | C67: Sum | D67: 1
B69: Documentation & Compliance
A71: 1.25 | B71: Preparation and submission of Skills Transfer and Training documentation including attendance records and topics covered | C71: Sum | D71: 1
A73: 1.26 | B73: Preparation, submission and approval of Quality Control Plan (QCP) prior to commencement of works | C73: Sum | D73: 1
A75: 1.27 | B75: Obtaining, submitting and managing all Telkom and other service provider wayleave approvals including liaison, relocation of poles and raising of overhead cables | C75: Sum | D75: 1
A77: 1.28 | B77: Preparation and submission of Material and Test Summary Dossier (comprehensive laboratory and field test results in PDF format) | C77: Sum | D77: 1
A79: 1.29 | B79: Preparation and submission of Rehabilitation and Environmental Compliance Report signed by Eskom Environmental Officer and Contractor's Engineer | C79: Sum | D79: 1
A81: 1.30 | B81: Appointment of SANAS-accredited laboratory for all material testing and field density testing for the full duration of the works | C81: Sum | D81: 1
A83: 1.31 | B83: Site De-establishment | C83: Once Off | D83: 1
A85: 1.32 | B85: Transport of all plant and equipment off site | C85: Once Off | D85: 1
A87: 1.33 | B87: Exit medicals | C87: Once Off | D87: 1
B89: Time-related obligations - Contractual Requirements
B91: Environmental Management:
A93: 1.34 | B93: Monitoring of compliance with and reporting on the EMP | C93: Month | D93: 12
B96: Monthly running cost of site offices, ablutions, secure storage, and utility connections.
A98: 1.35 | B98: Site offices, ablutions, change room, eating area and storage - monthly rental/maintenance | C98: Month | D98: 12
A100: 1.36 | B100: Temporary utillity connections | C100: Month | D100: 12
A102: 1.37 | B102: ECSA Professionally Registered Engineer (Pr.Eng), minimum 5 years road construction and maintenance experience post-registration | C102: Month | D102: 12
A104: 1.38 | B104: Construction Manager | C104: Month | D104: 12
A106: 1.39 | B106: Health and Safety Officer | C106: Month | D106: 12
A108: 1.40 | B108: Site Agent/Supervisor | C108: Month | D108: 12
A110: Total Carried Forward To Summary
A113: 2.0 ACCOMMODATION OF TRAFFIC
A114: Item | B114: Description | C114: Unit | D114: Quantity | E114: Rate | F114: Amount R
B115: Establishment of Traffic Accomodation
A117: 2.1 | B117: Preparation, submission and approval of traffic control plan prior to commencement of works | C117: Sum | D117: 1
A119: 2.2 | B119: Supply, erect and commission all temporary road signs, cones, delineators, traffic stations and associated traffic control measures at all construction zones along the access road and intersections; compliant with SARTSM for pedestrians, vehicular traffic and non-motorised traffic | C119: Sum | D119: 1
A121: 2.3 | B121: Flagmen | C121: Month | D121: 12
A123: 2.4 | B123: Traffic controllers | C123: Month | D123: 12
A125: 2.5 | B125: Traffic safety officer | C125: Month | D125: 12
A127: 2.6 | B127: Traffic safety vehicle | C127: Month | D127: 12
B129: Additional traffic accommodation facilities ordered by the Engineer:
A131: 2.7 | B131: Provision of additional traffic accommodation facilities | C131: Sum | D131: 1
A133: 2.8 | B133: Liaison with traffic authorities | C133: Month | D133: 12
B135: Destablishment of Traffic Accomodation
A137: 2.9 | B137: Remove, dismantle and clear all temporary traffic signs, cones, barriers, delineators and solid barricading from site on completion of works; reinstate road shoulders and verges disturbed by traffic accommodation to acceptable condition | C137: Sum | D137: 1
A140: Total Carried Forward To Summary
A143: 3.0 CLEARING AND GRUBBING
A144: Item | B144: Description | C144: Unit | D144: Quantity | E144: Rate | F144: Amount R
B145: Clearing and Grubbing
B147: Notes:
B149: All cleared material and surplus topsoil to be removed to approved spoil sites identified and provided by the Contractor
B151: All costs for loading, hauling and tipping to approved spoil sites to be included in respective item rates
B153: Clearing and Grubbing - Greenfield Operational Areas
A155: 3.1 | B155: Clear and grub new tarpaulin removal area; includes all vegetation, debris, trees and obstructions | C155: m2 | D155: 3000
A157: 3.2 | B157: Clear and grub new staging area | C157: m2 | D157: 4000
A159: 3.3 | B159: Clear and grub laydown area | C159: m2 | D159: 1000
B161: Removal and grubbing of large trees and tree stumps:
A163: 3.4 | B163: Girth equal to or exceeding 1,0 m up to and including 2,0 m (quantities are provisional) | C163: No | D163: 20
B165: Existing services location, detection and verification:
A167: 3.5 | B167: Using hand excavation to locate, expose and verify services | C167: m³ | D167: 500
A169: Total Carried Forward
A171: 4.0 DRAINS
A172: Item | B172: Description | C172: Unit | D172: Quantity | E172: Rate | F172: Amount R
B173: Notes:
B174: All drain types, positions, gradients and dimensions to be confirmed by Contractor's approved Geometric and Stormwater Design Report signed by ECSA Pr.Eng
B176: All stormwater drainage to connect to Arnot Power Station CSY drainage network
B178: All drains to achieve continuous uniform fall free from ponding and obstructions
B180: Stone pitching to comply with COTO (2020) grouted stone pitching specification
B182: Trapezoidal Earth Side Drains
A184: 4.1 | B184: Excavate, shape and compact trapezoidal earth side drains along both sides of new road carriageway; achieve continuous, uniform fall free from ponding and obstructions; spread and compact suitable excess material on adjacent embankments; connect to CSY drainage network | C184: m³ | D184: 2500
B186: Mitre Drains
A188: 4.2 | B188: Construct mitre drains at approximately 50m intervals along both sides of the road, tarpaulin removal area, laydown area and staging area, or at natural low points; at angle of approximately 30° downslope from side drain to efficiently discharge surface runoff into surrounding natural ground without causing erosion as per. Rate includes all excavation, shaping and finishing to neat uniform profile | C188: No | D188: 10
B190: Stone Pitched Aprons
A192: 4.3 | B192: Construct grouted stone-pitched aprons at mitre drain discharge points where erosion potential is high; supply stone, mortar grouting and all finishing to neat appearance as per. Rate includes all materials, labour and grouting | C192: m2 | D192: 70
B194: CSY Drainage Network Connection
A196: 4.4 | B196: Connect completed stormwater drainage system to Arnot Power Station Coal Stockyard drainage network; including all excavation, pipework, connections, structures and all associated works required. | C196: Sum | D196: 1
A198: 4.5 | B198: Loading and hauling of material in excess of 1,0 km | C198: m³-km | D198: 3
A200: Total Carried Forward To Summary
A202: 5.0 CULVERTS
A203: Item | B203: Description | C203: Unit | D203: Quantity | E203: Rate | F203: Amount R
B204: CULVERTS
B205: Notes:
B206: All culvert types, sizes and positions to be confirmed by Contractor's approved Geometric and Stormwater Design Report
B208: Stone pitching to comply with COTO (2020)
B210: Backfill to be compacted to minimum 90% Mod AASHTO density
B212: The rate for culvert structural members shall be inclusive of all materials including reinforcement
B214: Quantities are provisional pending geometric and stormwater design
A216: 5.1 | B216: Excavation for culvert structures to required depth and width; trim and shape invert; batter sides where necessary to prevent collapse; dispose of surplus material to approved spoil sites | C216: m³ | D216: 70
A218: 5.2 | B218: Backfill using imported G5 quality gravel material from commercial source, in layers not exceeding 150mm; compact to minimum 90% Mod AASHTO | C218: m³ | D218: 25
B220: Concrete pipe culverts:
A222: 5.3 | B222: Supply and install precast concrete pipe culvert, DN300 (spigot-and-socket with elastomeric seal, SANS 986/677 compliant), laid to line and level. Item includes all pipe sections and jointing materials for one completed road crossing | C222: m | D222: 200
A224: 5.4 | B224: Provide and lay granular Class B bedding and haunching to culvert pipes | C224: m | D224: 200
A226: 5.5 | B226: Construct in-situ reinforced concrete headwalls and wingwalls to all culverts; including all excavation, formwork, steel reinforcement | C226: No | D226: 20
A228: 5.6 | B228: Construct grouted stone pitching at culvert inlets and outlets to prevent scouring; compliant with COTO (2020) | C228: m2 | D228: 70
A230: 5.7 | B230: Geotextile separator (Class A2/A3) under mitre drain aprons | C230: m2 | D230: 70
A232: 5.8 | B232: Loading and hauling of material in excess of 1.0km arising from culvert excavations and associated works | C232: m³ | D232: 70
A235: Total Carried Forward Summary
A237: 6.0 EXCAVATION
A238: Item | B238: Description | C238: Unit | D238: Quantity | E238: Rate | F238: Amount R
B239: EXCAVATION
B241: Excavating material by using conventional road construction equipment, to spoil in sites designated by the Contractor
A243: 6.1 | B243: Natural gravel and sand materials | C243: m³ | D243: 10000
A245: 6.2 | B245: Coarse fill and rock fill | C245: m³ | D245: 1000
A247: 6.3 | B247: Removal of oversize material | C247: m³ | D247: 1500
B249: Excavating material by using labour enhanced methods of construction:
A251: 6.4 | B251: Natural gravel and sand materials | C251: m³ | D251: 500
B253: Stockpiling of road layer materials:
A255: 6.5 | B255: Natural gravel material | C255: m³ | D255: =SUM(D274:D280) -> 10000
A259: Total Carried Forward To Summary
A262: 7.0 COMMERCIAL MATERIALS
A263: Item | B263: Description | C263: Unit | D263: Quantity | E263: Rate | F263: Amount R
B264: Notes:
B266: This Bill covers supply and delivery only of all material
B268: All materials to be tested by SANAS-accredited laboratory prior to delivery on site
B270: No material to be delivered without written approval from Eskom's Engineer
B272: Granular Materials
A274: 7.1 | B274: G7 quality gravel | C274: m³ | D274: 3000
A276: 7.2 | B276: G6 Gravel quality gravel | C276: m³ | D276: 1000
A278: 7.3 | B278: G5 Gravel for C4 Base Layer | C278: m³ | D278: 3000
A280: 7.4 | B280: G5 Gravel for Wearing Course | C280: m³ | D280: 3000
B282: Stabilisation Materials
A284: 7.5 | B284: Supply Portland composite cement CEM II 32.5N for C4 chemical stabilisation | C284: t | D284: 100
B286: Bituminous Materials
A288: 7.6 | B288: Supply CAT 65 spray-grade bituminous emulsion (SS60) for fog spray application | C288: t | D288: 2.5
B290: Laydown Area Materials
A292: 7.7 | B292: Supply and haul to site well-graded clean river sand for 25mm bedding layer in laydown area | C292: m³ | D292: 30
A294: 7.8 | B294: Supply 60mm interlocking concrete block pavers; compliant with SANS 1058; Class 30/2.0 MPa (compressive/tensile strength); Type Class S-A (interlocking on all sides) | C294: m2 | D294: 1000
A296: 7.9 | B296: Supply precast concrete kerbs (E1 profile - 75x150) for edge restraints along perimeter of laydown area | C296: m | D296: 130
A298: 7.10 | B298: Supply ready-mix concrete 20MPa for kerb bedding and backing to precast concrete kerbs | C298: m³ | D298: 5
A301: Total Carried Forward To Summary
A303: 8.0 ROADBED
A304: Item | B304: Description | C304: Unit | D304: Quantity | E304: Rate | F304: Amount R
B305: ROADBED PREPARATION
B306: Notes:
A309: 8.1 | B309: In-situ treatment by ripping and re-compaction to a minimum of 90% Mod AASHTO | C309: m³ | D309: 3000
A311: 8.2 | B311: Construction of roadbed comprising a pioneer layer | C311: m³ | D311: 1500
A313: Total Carried Forward To Summary
A315: 9.0 ROAD PAVEMENT LAYERS
A316: Item | B316: Description | C316: Unit | D316: Quantity | E316: Rate | F316: Amount R
B317: ROAD PAVEMENT LAYERS
B319: Notes:
B320: This Bill covers placing, compacting of G7 selected layer, G6 subbase layer, G5 wearing course and fog spray
B322: All layers to be proof rolled after compaction by Contractor's Engineer prior to placing next layer
A324: 9.1 | B324: Compiling and implementing M&U plans for the construction of all the pavement layers | C324: No | D324: 3
B326: Construction of pavement layers:
B328: Roadway
A330: 9.2 | B330: Lower G7 selected subgrade layer (150mm) compacted to 93% Mod AASHTO | C330: m³ | D330: 2000
A332: 9.3 | B332: Lower G5 subbase gravel layer (chemically stabilised to achieve a 150mm C4 layer) compacted to 95% Mod AASHTO | C332: m³ | D332: 2000
A334: 9.4 | B334: Gravel wearing course layer 150mm compacted to 95% Mod AASHTO | C334: m³ | D334: 2000
B336: Tarpaulin Removal Area and Staging Area
A338: 9.5 | B338: Lower G7 selected subgrade layer (150mm) compacted to 93% Mod AASHTO | C338: m³ | D338: 1100
A340: 9.6 | B340: Upper G6 selected subgrade layer (150mm) compacted to 95% Mod AASHTO | C340: m³ | D340: 1100
A342: 9.7 | B342: Lower G5 subbase gravel layer (chemically stabilised to achieve a 150mm C4 layer) compacted to 95% Mod AASHTO | C342: m³ | D342: 1100
A344: 9.8 | B344: Gravel wearing course layer 150mm compacted to 95% Mod AASHTO | C344: m³ | D344: 1100
B346: Laydown Area
A348: 9.9 | B348: Lower G5 subbase gravel layer (unstabilised) (200mm) compacted to 95% Mod AASHTO | C348: m³ | D348: 200
B350: Bituminous fog spray
A352: 9.10 | B352: Application of bituminous fog spray (SS60) at 1%–1.5% by mass of dry aggregate over G5 wearing course; spray content verified and approved by Contractor's Engineer. | C352: m² | D352: 3000
A356: Total Carried Forward Summary
A358: 10.0 STABILISATION
A359: Item | B359: Description | C359: Unit | D359: Quantity | E359: Rate | F359: Amount R
B360: STABILISATION
B362: Notes:
B364: This Bill covers mixing, placing and compacting of C4 chemically stabilised base layer only
B366: Material supply (G5 gravel and CEM II cement) covered elsewhere
B368: Minimum 7-day curing period to be allowed for all C4 layers before placing wearing course
B370: Chemical stabilisation:
A372: 10.1 | B372: Chemical stabilisation of 150mm C4 base layer: Addition of cementitious stabilisation agents for pavement layers and spreading the agent using bags and labour enhancement methods | C372: m³ | D372: 3000
B374: Cementitious stabilisation agents for pavement layers:
A376: 10.2 | B376: Cement (for subbase layer) | C376: t | D376: 100
A378: 10.3 | B378: Provision and application of water for curing | C378: kℓ | D378: 250
A381: Total Carried Forward Summary
A384: 11.0 SEGMENTAL BLOCK PAVING LAYERS
A385: Item | B385: Description | C385: Unit | D385: Quantity | E385: Rate | F385: Amount R
B386: SEGMENTAL BLOCK PAVING LAYERS
... 99 more rows

Sheet Original BOQ (hidden)
B16: BILL OF QUANTITIES FOR COAL STOCKYARD ACCESS ROAD MAINTENANCE
B35: All payment items to be rated in accordance with 2020 COTO: Standard Specifications for Road and Bridge Works for South African Road Authorities
B44: C1.2 GENERAL REQUIREMENTS AND PROVISIONS
B45: Item | C45: Description | D45: Unit | E45: Quantity | F45: Rate | G45: Amount R
A46: 159 | B46: C1.2 | C46: GENERAL REQUIREMENTS AND PROVISIONS
A48: 2811 | B48: C1.2.1 | C48: Environmental Management:
A50: 2812 | B50: C1.2.1.1 | C50: Monitoring of compliance with and reporting on the EMP | D50: month | E50: 3 | F50: R5,000.00 | G50: =E50*F50 -> R15,000.00
A52: 2814 | B52: C1.2.2 | C52: Programming and Reporting:
A54: 2820 | B54: C1.2.2.6 | C54: Preparation and submission of all information and reports specified in the Contract Documentation | D54: month | E54: 3 | F54: R5,000.00 | G54: =E54*F54 -> R15,000.00
A56: 2835 | B56: C1.2.5 | C56: Safety:
A58: 2836 | B58: C1.2.5.1 | C58: Health and safety plan | D58: lump sum | E58: 1 | F58: R10,000.00 | G58: =E58*F58 -> R10,000.00
A60: 2837 | B60: C1.2.5.2 | C60: Implementation of health and safety plan | D60: month | E60: 3 | F60: R5,000.00 | G60: =E60*F60 -> R15,000.00
A62: 2843 | B62: C1.2.8 | C62: Dayworks:
A64: 2844 | B64: C1.2.8.1 | C64: Personnel:
A66: 2845 | C66: (a) Unskilled labourer | D66: Hour | F66: R40.00 | G66: =E66*F66 -> 0
A68: 2846 | C68: (b) Semi-skilled labourer | D68: Hour | F68: R45.00 | G68: =E68*F68 -> 0
A70: 2847 | C70: (c) Skilled labourer | D70: Hour | F70: R50.00 | G70: =E70*F70 -> 0
A72: 2848 | C72: (d) Gang leader | D72: Hour | F72: R60.00 | G72: =E72*F72 -> 0
A74: 2849 | C74: (e) Foreman | D74: Hour | F74: R95.00 | G74: =E74*F74 -> 0
C76: (f) Skilled Artisan | D76: Hour | F76: R55.00 | G76: =E76*F76 -> 0
C78: (g) Flagman | D78: Hour | F78: R70.00 | G78: =E78*F78 -> 0
B80: Total Carried Forward To Summary | G80: =SUM(G46:G79) -> R55,000.00
B84: C1.2 GENERAL REQUIREMENTS AND PROVISIONS
B85: Item | C85: Description | D85: Unit | E85: Quantity | F85: Rate | G85: Amount R
B86: Brought Forward | G86: =G80 -> R55,000.00
A87: 2851 | B87: C1.2.8.2 | C87: Construction equipment:
A89: 2852 | C89: (a) Motor grader (minimum 9 tons, power ± 100kW) | D89: Hour | E89: 40 | F89: R1,100.00 | G89: =E89*F89 -> R44,000.00
A91: 2853 | C91: (b) Vibratory roller (9-12 tons) | D91: Hour | E91: 30 | F91: R570.00 | G91: =E91*F91 -> R17,100.00
A93: 2854 | C93: (c) Pneumatic roller (gross mass: ± 4,5 tons unloaded to 18 tons loaded) | D93: Hour | E93: 30 | F93: R410.00 | G93: =E93*F93 -> R12,300.00
A95: 2855 | C95: (d) Front end loader (minimum power 90kW) | D95: Hour | E95: 60 | F95: R700.00 | G95: =E95*F95 -> R42,000.00
A97: 2856 | C97: (e) Tractor loader backhoe (55-70 kW 0,5m3 bucket) | D97: Hour | E97: 30 | F97: R490.00 | G97: =E97*F97 -> R14,700.00
A99: 2857 | C99: (f) Excavator (minimum power 105 kW) | D99: Hour | E99: 40 | F99: R820.00 | G99: =E99*F99 -> R32,800.00
C101: (g) Water truck (minimum 5 kl) | D101: Hour | E101: 40 | F101: R190.00 | G101: =E101*F101 -> R7,600.00
C103: (h) Tip truck (minimum load capacity 10 tons) | D103: Hour | E103: 40 | F103: R450.00 | G103: =E103*F103 -> R18,000.00
A105: 2860 | B105: C1.2.8.3 | C105: Vehicles:
A107: 2861 | C107: (a) Light delivery vehicle | D107: kilometre | E107: 3000 | F107: R5.00 | G107: =E107*F107 -> R15,000.00
A109: 2862 | C109: (b) Flatbed truck | D109: kilometre | E109: 1000 | F109: R8.00 | G109: =E109*F109 -> R8,000.00
A111: 5172 | C111: (c) Dump truck | D111: kilometre | E111: 2500 | F111: R12.00 | G111: =E111*F111 -> R30,000.00
A113: 5174 | B113: C1.2.8.4 | C113: Materials:
A115: 5175 | C115: (a) Procurement of materials | D115: prov sum | E115: 1 | F115: R30,000.00 | G115: =E115*F115 -> R30,000.00
A117: 5176 | C117: (b) Contractor's handling costs, profit and all other charges in respect of item C1.2.8.4(a) | D117: % | E117: =F115 -> 30000 | F117: R0.08 | G117: =E117*F117 -> R2,400.00
B119: Total Carried Forward To Summary | G119: =SUM(G86:G118) -> R328,900.00
B122: C1.3 CONTRACTOR’S SITE ESTABLISHMENT AND GENERAL OBLIGATIONS
B123: Item | C123: Description | D123: Unit | E123: Quantity | F123: Rate | G123: Amount R
A124: 198 | B124: C1.3 | C124: CONTRACTOR’S SITE ESTABLISHMENT AND GENERAL OBLIGATIONS
A126: 2868 | B126: C1.3.1 | C126: The Contractor's general obligations:
A128: 2869 | B128: C1.3.1.1 | C128: Fixed obligations | D128: lump sum | E128: 1 | F128: R2,500,000.00 | G128: =E128*F128 -> R2,500,000.00
A130: 2870 | B130: C1.3.1.2 | C130: Value-related obligations | D130: lump sum | E130: 1 | F130: R1,000,000.00 | G130: =E130*F130 -> R1,000,000.00
A132: 2871 | B132: C1.3.1.3 | C132: Time-related obligations | D132: month | E132: 3 | F132: R2,300,000.00 | G132: =E132*F132 -> R6,900,000.00
B134: PC1.3.2 | C134: Designing and compiling reports - Geometric and Stormwater Design, and pavement verification | D134: Prov sum | E134: 1 | F134: R350,000.00 | G134: =E134*F134 -> R350,000.00
B136: PC1.3.3 | C136: Compiling and submission of construction and as-built drawings | D136: Prov sum | E136: 1 | F136: R250,000.00 | G136: =E136*F136 -> R250,000.00
B138: PC1.3.4 | C138: Skills transfer and training of Employer's Engineers | D138: Prov sum | E138: 1 | F138: R200,000.00 | G138: =E138*F138 -> R200,000.00
B140: PC1.3.3.8 | C140: Quality Officer complying with ISO 9001 | D140: Months | E140: 3 | F140: R75,000.00 | G140: =E140*F140 -> R225,000.00
B157: Total Carried Forward To Summary | G157: =SUM(G124:G156) -> R11,425,000.00
B160: C1.5 ACCOMMODATION OF TRAFFIC
B161: Item | C161: Description | D161: Unit | E161: Quantity | F161: Rate | G161: Amount R
A162: 200 | B162: C1.5 | C162: ACCOMMODATION OF TRAFFIC
A164: 6196 | B164: C1.5.2 | C164: Accommodation of vehicular traffic | D164: month | E164: 3 | F164: R15,000.00 | G164: =E164*F164 -> R45,000.00
A166: 2963 | B166: C1.5.7 | C166: Temporary traffic control facilities:
A168: 2964 | B168: C1.5.7.1 | C168: Delineators including mounting bases and ballast:
A170: 2966 | C170: (b) Double sided, reversible left or right (600mm x 150mm) | D170: No | E170: 20 | F170: R150.00 | G170: =E170*F170 -> R3,000.00
A172: 2967 | B172: C1.5.7.2 | C172: Traffic cones, minimum height 750 mm | D172: No | E172: 30 | F172: R200.00 | G172: =E172*F172 -> R6,000.00
A174: 2968 | B174: C1.5.7.3 | C174: Flagmen | D174: man-shift | E174: 150 | F174: R750.00 | G174: =E174*F174 -> R112,500.00
A176: 2969 | B176: C1.5.7.4 | C176: Traffic controllers | D176: man-shift | E176: 150 | F176: R750.00 | G176: =E176*F176 -> R112,500.00
A178: 2988 | B178: C1.5.7.8 | C178: Traffic control stations | D178: month | E178: 3 | F178: R5,000.00 | G178: =E178*F178 -> R15,000.00
A180: 5201 | B180: C1.5.8 | C180: Traffic safety officer | D180: man-month | E180: 7 | F180: R10,000.00 | G180: =E180*F180 -> R70,000.00
A182: 5202 | B182: C1.5.9 | C182: Traffic safety vehicle | D182: month | E182: 3 | F182: R2,500.00 | G182: =E182*F182 -> R7,500.00
B184: C1.5.12 | C184: Additional traffic accommodation facilities ordered by the Engineer:
B186: C1.5.12.1 | C186: Provision of additional traffic accommodation facilities | D186: Prov sum | E186: 1 | G186: =E186*F186 -> 0
B201: Total Carried Forward To Summary | G201: =SUM(G162:G200) -> R371,500.00
B204: C1.6 CLEARING AND GRUBBING
B205: Item | C205: Description | D205: Unit | E205: Quantity | F205: Rate | G205: Amount R
A206: 201 | B206: C1.6 | C206: CLEARING AND GRUBBING
B208: PC1.6.1 | C208: Clearing and Grubbing:
B210: C1.6.1.1 | C210: Clearing with machines and some hand labour where necessary | D210: ha | E210: 2 | F210: R18,000.00 | G210: =E210*F210 -> R36,000.00
B212: C1.6.3 | C212: Removal and grubbing of large trees and tree stumps:
B214: C1.6.3.1 | C214: Girth equal to or exceeding 1,0 m up to and including 2,0 m | D214: No | E214: 15 | F214: R1,350.00 | G214: =E214*F214 -> R20,250.00
B216: C1.6.3.2 | C216: Girth exceeding 2,0 m up to and including 3,0 m | D216: No | E216: 23 | F216: R1,550.00 | G216: =E216*F216 -> R35,650.00
B218: C2.1.2 | C218: Existing services location, detection and verification:
B220: C2.1.2.5 | C220: Using hand excavation to locate, expose and verify services | D220: m³ | E220: 300 | F220: R750.00 | G220: =E220*F220 -> R225,000.00
B232: Total Carried Forward | G232: =SUM(G206:G231) -> R316,900.00
B234: C3.1 DRAINS
B235: Item | C235: Description | D235: Unit | E235: Quantity | F235: Rate | G235: Amount R
A236: 237 | B236: C3.1 | C236: DRAINS
A238: 6199 | B238: C3.1.1 | C238: Excavation for open drains:
A240: 6200 | B240: C3.1.1.1 | C240: Excavating all material situated within the following depth ranges below the surface level using conventional methods:
A242: 6201 | C242: (a) 0 m to 1,5 m (includes side drains and mitre drains) * one side of the drain only at 2% crossfall | D242: m³ | E242: 2500 | F242: R120.00 | G242: =E242*F242 -> R300,000.00
A244: 5315 | B244: C3.1.16 | C244: Loading and hauling of material in excess of 1,0 km | D244: m³-km | E244: 5 | F244: R6.00 | G244: =E244*F244 -> R30.00
A246: 5322
B252: Total Carried Forward To Summary | G252: =SUM(G236:G251) -> R300,030.00
B254: C3.2 CULVERTS
B255: Item | C255: Description | D255: Unit | E255: Quantity | F255: Rate | G255: Amount R
A256: 238 | B256: C3.2 | C256: CULVERTS
A258: 6211 | B258: C3.2.1 | C258: Excavation for culvert structures:
A260: 6212 | B260: C3.2.1.1 | C260: Excavating in all material situated within the following depth ranges below the surface level:
A262: 6213 | C262: (a) 0 m to 1,5 m | D262: m³ | E262: 40 | F262: R150.00 | G262: =E262*F262 -> R6,000.00
A264: 3434 | B264: C3.2.2.1 | C264: Using the excavated material | D264: m³ | E264: 25 | F264: R150.00 | G264: =E264*F264 -> R3,750.00
A266: 3435 | B266: C3.2.2.2 | C266: Using imported selected material:
A268: 3436 | C268: (a) From commercial sources (state type) | D268: m³ | E268: 10 | F268: R600.00 | G268: =E268*F268 -> R6,000.00
A270: 3443 | B270: PC3.2.3 | C270: Concrete pipe culverts:
A272: 3445 | B272: C3.2.3.2 | C272: On Class B bedding (type and diameter indicated) | D272: m | E272: 50 | F272: R1,250.00 | G272: =E272*F272 -> R62,500.00
A274: 3446 | C274: (a) Supply and install precast concrete pipe culvert, DN300 (spigot-and-socket with elastomeric seal, SANS 986/677 compliant), laid to line and level. Item includes all pipe sections and jointing materials for one completed road crossing | D274: No | E274: 10 | F274: R2,500.00 | G274: =E274*F274 -> R25,000.00
C276: (b) Stone pitching apron at mirtre drain/culvert outlets, 150 mm thick on geotextile | D276: m2 | E276: 70 | F276: R450.00 | G276: =E276*F276 -> R31,500.00
C278: (c ) Geotextile separator (Class A2/A3) under mitre drain aprons | D278: m2 | E278: 70 | F278: R25.00 | G278: =E278*F278 -> R1,750.00
B280: PC11.1.2 | C280: Stone pitching:
B282: C11.1.2.2 | C282: Grouted stone pitching with mortar | D282: m² | G282: =E282*F282 -> 0
B289: Total Carried Forward | G289: =SUM(G256:G288) -> R136,500.00
B291: C4.4 COMMERCIAL MATERIALS
A292: 243 | B292: Item | C292: Description | D292: Unit | E292: Quantity | F292: Rate | G292: Amount R
B293: C4.4 | C293: COMMERCIAL MATERIALS
B295: C4.4.2 | C295: Commercial materials identified by the Contractor from commercial, private or other non-commercial suppliers:
B297: PC4.4.2.1 | C297: Pavement layer material:
C299: (e) Type G5 material | D299: m³ | E299: 2750 | F299: R350.00 | G299: =E299*F299 -> R962,500.00
C301: (e) Type G6 material | D301: m³ | E301: 1450 | F301: R305.00 | G301: =E301*F301 -> R442,250.00
C303: (e) Type G7 material | D303: m³ | E303: 2550 | F303: R300.00 | G303: =E303*F303 -> R765,000.00
C305: (q) Natural or crushed gravel material for the wearing course of an unsealed road | D305: m³ | E305: 2550 | F305: R350.00 | G305: =E305*F305 -> R892,500.00
B307: C4.4.4 | C307: Cementitious stabilising agents:
B309: C4.4.4.1 | C309: Cement | D309: ton | E309: 90 | F309: R1,900.00 | G309: =E309*F309 -> R171,000.00
B311: C4.4.5 | C311: Bituminous stabilising agents:
B313: C4.4.5.2 | C313: Emulsion stable grade (CAT 65 spray-grade ) | D313: t | E313: 2.5 | F313: R1,600.00 | G313: =E313*F313 -> R4,000.00
A315: 3733 | B315: C4.4.7 | C315: Sampling and material testing by a commercial laboratory for the stabilisation designs:
A317: 3734 | B317: C4.4.7.1 | C317: Cost of sampling and material testing | D317: prov sum | E317: 1 | F317: R50,000.00 | G317: =E317*F317 -> R50,000.00
B319: C4.4.7.2 | C319: Handling cost and profit in respect of item C4.4.7.1 | D319: % | E319: =F317 -> 50000 | F319: R0.08 | G319: =E319*F319 -> R4,000.00
B322: Total Carried Forward To Summary | G322: =SUM(G293:G321) -> R3,291,250.00
B324: C5.1 ROADBED
A325: 245 | B325: Item | C325: Description | D325: Unit | E325: Quantity | F325: Rate | G325: Amount R
B326: C5.1 | C326: ROADBED
A327: 3777
B328: PC5.1.1 | C328: Roadbed construction and compaction:
A329: 3779
B330: PC5.1.1.2 | C330: Compaction of in-situ material to atleast 90 % Mod AASHTO | D330: m³ | E330: 8300 | F330: R25.00 | G330: =E330*F330 -> R207,500.00
A331: 3793
B332: C5.1.3 | C332: Excavate material to spoil sites designated by the Contractor:
A333: 3794
B334: C5.1.3.1 | C334: Excavate material to spoil from roadbed construction, material obtained from:
A335: 3795
C336: (a) Soft excavation | D336: m³ | E336: 30000 | F336: R50.00 | G336: =E336*F336 -> R1,500,000.00
A337: 3796
C338: (b) Boulder excavation Class A | D338: m³ | E338: 600 | F338: R350.00 | G338: =E338*F338 -> R210,000.00
A339: 6227
C340: (d) Hard excavation (other than by blasting) | D340: m³ | E340: 200 | F340: R400.00 | G340: =E340*F340 -> R80,000.00
B342: C5.1.3.2 | C342: Excavate material to spoil from roadbed construction, using labour enhancement, material obtained from:
A343: 3798
C344: (a) Soft excavation | D344: m³ | E344: 300 | F344: R80.00 | G344: =E344*F344 -> R24,000.00
A345: 3799
B346: C5.1.4 | C346: Removal of unsuitable material to spoil: | D346: `
A347: 3801
B348: C5.1.4.1 | C348: In layer thicknesses of 200 mm and less:
A349: 6230
C350: (a) Stable material | D350: m³ | E350: 200 | F350: R55.00 | G350: =E350*F350 -> R11,000.00
A351: 6231
C352: (b) Unstable material | D352: m³ | E352: 200 | F352: R55.00 | G352: =E352*F352 -> R11,000.00
A353: 3804
B354: C5.1.5 | C354: In-situ treatment of roadbed in hard material:
A355: 3805
B356: C5.1.5.1 | C356: In-situ treatment by ripping | D356: m³ | E356: 8300 | F356: R15.00 | G356: =E356*F356 -> R124,500.00
A357: 5446
B363: Total Carried Forward To Summary | G363: =SUM(G326:G362) -> R2,168,000.00
B365: C5.3 ROAD PAVEMENT LAYERS
A366: 247 | B366: Item | C366: Description | D366: Unit | E366: Quantity | F366: Rate | G366: Amount R
B367: C5.3 | C367: ROAD PAVEMENT LAYERS
B369: C5.3.1 | C369: Compiling and implementing M&U plans for the construction of all the pavement layers | D369: No | E369: 5 | F369: R1,500.00 | G369: =E369*F369 -> R7,500.00
B371: PC5.3.2 | C371: Construction of pavement layers:
B373: PC5.3.2.1 | C373: Construction of layers using conventional construction methods:
C375: Roadway
C377: (a) Lower G7 selected subgrade layer (150mm) compacted to 93% Mod AASHTO | D377: m³ | E377: 1100 | F377: R80.00 | G377: =E377*F377 -> R88,000.00
C379: (g) Gravel wearing course layer 150mm compacted to 95% Mod AASHTO | D379: m³ | E379: 1100 | F379: R120.00 | G379: =E379*F379 -> R132,000.00
C381: (j) Lower G5 subbase gravel layer (chemically stabilised to achieve a 150mm C4 layer) compacted to 95% Mod AASHTO | D381: m³ | E381: 1100 | F381: R120.00 | G381: =E381*F381 -> R132,000.00
C383: Tarpaulin Removal Area and Staging Area
C385: (a) Lower G7 selected subgrade layer (150mm) compacted to 93% Mod AASHTO | D385: m³ | E385: 1500 | F385: R80.00 | G385: =E385*F385 -> R120,000.00
C387: (c) Upper G6 selected subgrade layer (150mm) compacted to 95% Mod AASHTO | D387: m³ | E387: 1500 | F387: R100.00 | G387: =E387*F387 -> R150,000.00
C389: (g) Gravel wearing course layer 150mm compacted to 95% Mod AASHTO | D389: m³ | E389: 1500 | F389: R100.00 | G389: =E389*F389 -> R150,000.00
C391: (j) Lower G5 subbase gravel layer (chemically stabilised to achieve a 150mm C4 layer) compacted to 95% Mod AASHTO | D391: m³ | E391: 1500 | F391: R100.00 | G391: =E391*F391 -> R150,000.00
C393: Laydown Area
C395: (i) Lower G5 subbase gravel layer (unstabilised) (200mm) compacted to 95% Mod AASHTO | D395: m³ | E395: 200 | F395: R100.00 | G395: =E395*F395 -> R20,000.00
A402: 5451
A404: 3867
A406: 3868
A410: 5459
A412: 5466
B415: Total Carried Forward | G415: =SUM(G367:G414) -> R949,500.00
B417: C5.4 STABILISATION
B418: Item | C418: Description | D418: Unit | E418: Quantity | F418: Rate | G418: Amount R
B419: C5.4 | C419: STABILISATION
B421: C5.4.2 | C421: Chemical stabilisation:
B423: C5.4.2.1 | C423: Chemical stabilisation of 150mm G5 gravel pavement layers to achieve C4 properties | D423: m³ | E423: 2600 | F423: R20.00 | G423: =E423*F423 -> R52,000.00
B425: C5.4.2.2 | C425: Chemical stabilisation of 150mm G5 gravel of pavement layers to achieve C4 properties using labour enhanced methods of construction | D425: m³ | E425: 500 | F425: R30.00 | G425: =E425*F425 -> R15,000.00
B427: C5.4.5 | C427: Cementitious stabilisation agents for pavement layers:
B429: C5.4.5.2 | C429: Addition of cementitious stabilisation agents for pavement layers and spreading the agent using bags and labour enhancement methods:
C431: (a) Cement (CEM II 32.5N Portland composite cement) | D431: t | E431: 90 | F431: R200.00 | G431: =E431*F431 -> R18,000.00
B433: PC8.2.1 | C433: Cover sprays, fog sprays and rejuvenation sprays:
B435: C8.2.1.1 | C435: 65 % Cationic spray grade emulsion:
C437: (a) Diluted with 60% emulsion / 40% water | D437: ℓ | E437: 2010 | F437: R20.00 | G437: =E437*F437 -> R40,200.00
B452: Total Carried Forward | G452: =SUM(G419:G451) -> R125,200.00
B455: C6.2 SEGMENTAL BLOCK PAVING LAYERS
B456: Item | C456: Description | D456: Unit | E456: Quantity | F456: Rate | G456: Amount R
B457: C6.2 | C457: SEGMENTAL BLOCK PAVING LAYERS
B459: C6.2.1 | C459: Segmental block paving:
B461: C6.2.1.1 | C461: Concrete block paving (60mm Class 30/2.0, Type S-A) | D461: m² | E461: 200 | F461: R200.00 | G461: =E461*F461 -> R40,000.00
B463: C6.2.3 | C463: Provision and application of approved herbicide and ant poison:
... 56 more rows

Sheet Revised BOQ (hidden)
B16: BILL OF QUANTITIES FOR COAL STOCKYARD ACCESS ROAD MAINTENANCE
B35: All payment items to be rated in accordance with 2020 COTO: Standard Specifications for Road and Bridge Works for South African Road Authorities
B44: C1.2 GENERAL REQUIREMENTS AND PROVISIONS
B45: Item | C45: Description | D45: Unit | E45: Quantity | F45: Rate | G45: Amount R
A46: 159 | B46: C1.2 | C46: GENERAL REQUIREMENTS AND PROVISIONS
A48: 2811 | B48: C1.2.1 | C48: Environmental Management:
A50: 2812 | B50: C1.2.1.1 | C50: Monitoring of compliance with and reporting on the EMP | D50: month | E50: 3 | F50: R5,000.00 | G50: =E50*F50 -> R15,000.00
A52: 2814 | B52: C1.2.2 | C52: Programming and Reporting:
A54: 2820 | B54: C1.2.2.6 | C54: Preparation and submission of all information and reports specified in the Contract Documentation | D54: month | E54: 3 | F54: R5,000.00 | G54: =E54*F54 -> R15,000.00
A56: 2835 | B56: C1.2.5 | C56: Safety:
A58: 2836 | B58: C1.2.5.1 | C58: Health and safety plan | D58: lump sum | E58: 1 | F58: R10,000.00 | G58: =E58*F58 -> R10,000.00
A60: 2837 | B60: C1.2.5.2 | C60: Implementation of health and safety plan | D60: month | E60: 3 | F60: R5,000.00 | G60: =E60*F60 -> R15,000.00
A62: 2843 | B62: C1.2.8 | C62: Dayworks:
A64: 2844 | B64: C1.2.8.1 | C64: Personnel:
A66: 2845 | C66: (a) Unskilled labourer | D66: Hour | E66: 2500 | F66: R40.00 | G66: =E66*F66 -> R100,000.00
A68: 2846 | C68: (b) Semi-skilled labourer | D68: Hour | E68: 1500 | F68: R45.00 | G68: =E68*F68 -> R67,500.00
A70: 2847 | C70: (c) Skilled labourer | D70: Hour | E70: 1000 | F70: R50.00 | G70: =E70*F70 -> R50,000.00
A72: 2848 | C72: (d) Gang leader | D72: Hour | E72: 500 | F72: R60.00 | G72: =E72*F72 -> R30,000.00
A74: 2849 | C74: (e) Foreman | D74: Hour | E74: 500 | F74: R95.00 | G74: =E74*F74 -> R47,500.00
C76: (f) Skilled Artisan | D76: Hour | E76: 500 | F76: R55.00 | G76: =E76*F76 -> R27,500.00
C78: (g) Flagman | D78: Hour | E78: 800 | F78: R70.00 | G78: =E78*F78 -> R56,000.00
B80: Total Carried Forward To Summary | G80: =SUM(G46:G79) -> R433,500.00
B84: C1.2 GENERAL REQUIREMENTS AND PROVISIONS
B85: Item | C85: Description | D85: Unit | E85: Quantity | F85: Rate | G85: Amount R
B86: Brought Forward | G86: =G80 -> R433,500.00
A87: 2851 | B87: C1.2.8.2 | C87: Construction equipment:
A89: 2852 | C89: (a) Motor grader (minimum 9 tons, power ± 100kW) | D89: Hour | E89: 40 | F89: R1,100.00 | G89: =E89*F89 -> R44,000.00
A91: 2853 | C91: (b) Vibratory roller (9-12 tons) | D91: Hour | E91: 30 | F91: R570.00 | G91: =E91*F91 -> R17,100.00
A93: 2854 | C93: (c) Pneumatic roller (gross mass: ± 4,5 tons unloaded to 18 tons loaded) | D93: Hour | E93: 30 | F93: R410.00 | G93: =E93*F93 -> R12,300.00
A95: 2855 | C95: (d) Front end loader (minimum power 90kW) | D95: Hour | E95: 60 | F95: R700.00 | G95: =E95*F95 -> R42,000.00
A97: 2856 | C97: (e) Tractor loader backhoe (55-70 kW 0,5m3 bucket) | D97: Hour | E97: 30 | F97: R490.00 | G97: =E97*F97 -> R14,700.00
A99: 2857 | C99: (f) Excavator (minimum power 105 kW) | D99: Hour | E99: 40 | F99: R820.00 | G99: =E99*F99 -> R32,800.00
C101: (g) Water truck (minimum 5 kl) | D101: Hour | E101: 40 | F101: R190.00 | G101: =E101*F101 -> R7,600.00
C103: (h) Tip truck (minimum load capacity 10 tons) | D103: Hour | E103: 40 | F103: R450.00 | G103: =E103*F103 -> R18,000.00
A105: 2860 | B105: C1.2.8.3 | C105: Vehicles:
A107: 2861 | C107: (a) Light delivery vehicle | D107: kilometre | E107: 3000 | F107: R5.00 | G107: =E107*F107 -> R15,000.00
A109: 2862 | C109: (b) Flatbed truck | D109: kilometre | E109: 1000 | F109: R8.00 | G109: =E109*F109 -> R8,000.00
A111: 5172 | C111: (c) Dump truck | D111: kilometre | E111: 2500 | F111: R12.00 | G111: =E111*F111 -> R30,000.00
A113: 5174 | B113: C1.2.8.4 | C113: Materials:
A115: 5175 | C115: (a) Procurement of materials | D115: prov sum | E115: 1 | F115: R30,000.00 | G115: =E115*F115 -> R30,000.00
A117: 5176 | C117: (b) Contractor's handling costs, profit and all other charges in respect of item C1.2.8.4(a) | D117: % | E117: =F115 -> 30000 | F117: R0.08 | G117: =E117*F117 -> R2,400.00
B119: Total Carried Forward To Summary | G119: =SUM(G86:G118) -> R707,400.00
B122: C1.3 CONTRACTOR’S SITE ESTABLISHMENT AND GENERAL OBLIGATIONS
B123: Item | C123: Description | D123: Unit | E123: Quantity | F123: Rate | G123: Amount R
A124: 198 | B124: C1.3 | C124: CONTRACTOR’S SITE ESTABLISHMENT AND GENERAL OBLIGATIONS
A126: 2868 | B126: C1.3.1 | C126: The Contractor's general obligations:
A128: 2869 | B128: C1.3.1.1 | C128: Fixed obligations | D128: lump sum | E128: 1 | F128: R2,500,000.00 | G128: =E128*F128 -> R2,500,000.00
A130: 2870 | B130: C1.3.1.2 | C130: Value-related obligations | D130: lump sum | E130: 1 | F130: R1,000,000.00 | G130: =E130*F130 -> R1,000,000.00
A132: 2871 | B132: C1.3.1.3 | C132: Time-related obligations | D132: month | E132: 3 | F132: R2,300,000.00 | G132: =E132*F132 -> R6,900,000.00
B134: PC1.3.2 | C134: Designing and compiling reports - Geometric and Stormwater Design, and pavement verification | D134: Prov sum | E134: 1 | F134: R350,000.00 | G134: =E134*F134 -> R350,000.00
B136: PC1.3.3 | C136: Compiling and submission of construction and as-built drawings | D136: Prov sum | E136: 1 | F136: R250,000.00 | G136: =E136*F136 -> R250,000.00
B138: PC1.3.4 | C138: Skills transfer and training of Employer's Engineers | D138: Prov sum | E138: 1 | F138: R200,000.00 | G138: =E138*F138 -> R200,000.00
B140: PC1.3.3.8 | C140: Quality Officer complying with ISO 9001 | D140: Months | E140: 3 | F140: R75,000.00 | G140: =E140*F140 -> R225,000.00
B157: Total Carried Forward To Summary | G157: =SUM(G124:G156) -> R11,425,000.00
B160: C1.5 ACCOMMODATION OF TRAFFIC
B161: Item | C161: Description | D161: Unit | E161: Quantity | F161: Rate | G161: Amount R
A162: 200 | B162: C1.5 | C162: ACCOMMODATION OF TRAFFIC
A164: 6196 | B164: C1.5.2 | C164: Accommodation of vehicular traffic | D164: month | E164: 3 | F164: R15,000.00 | G164: =E164*F164 -> R45,000.00
A166: 2963 | B166: C1.5.7 | C166: Temporary traffic control facilities:
A168: 2964 | B168: C1.5.7.1 | C168: Delineators including mounting bases and ballast:
A170: 2966 | C170: (b) Double sided, reversible left or right (600mm x 150mm) | D170: No | E170: 20 | F170: R150.00 | G170: =E170*F170 -> R3,000.00
A172: 2967 | B172: C1.5.7.2 | C172: Traffic cones, minimum height 750 mm | D172: No | E172: 30 | F172: R200.00 | G172: =E172*F172 -> R6,000.00
A174: 2968 | B174: C1.5.7.3 | C174: Flagmen | D174: man-shift | E174: 150 | F174: R750.00 | G174: =E174*F174 -> R112,500.00
A176: 2969 | B176: C1.5.7.4 | C176: Traffic controllers | D176: man-shift | E176: 150 | F176: R750.00 | G176: =E176*F176 -> R112,500.00
A178: 2988 | B178: C1.5.7.8 | C178: Traffic control stations | D178: month | E178: 3 | F178: R5,000.00 | G178: =E178*F178 -> R15,000.00
A180: 5201 | B180: C1.5.8 | C180: Traffic safety officer | D180: man-month | E180: 7 | F180: R10,000.00 | G180: =E180*F180 -> R70,000.00
A182: 5202 | B182: C1.5.9 | C182: Traffic safety vehicle | D182: month | E182: 3 | F182: R2,500.00 | G182: =E182*F182 -> R7,500.00
B184: C1.5.12 | C184: Additional traffic accommodation facilities ordered by the Engineer:
B186: C1.5.12.1 | C186: Provision of additional traffic accommodation facilities | D186: Prov sum | E186: 1 | G186: =E186*F186 -> 0
B201: Total Carried Forward To Summary | G201: =SUM(G162:G200) -> R371,500.00
B204: C1.6 CLEARING AND GRUBBING
B205: Item | C205: Description | D205: Unit | E205: Quantity | F205: Rate | G205: Amount R
A206: 201 | B206: C1.6 | C206: CLEARING AND GRUBBING
B208: PC1.6.1 | C208: Clearing and Grubbing:
B210: C1.6.1.1 | C210: Clearing with machines and some hand labour where necessary | D210: ha | E210: 2 | F210: R18,000.00 | G210: =E210*F210 -> R36,000.00
B212: C1.6.3 | C212: Removal and grubbing of large trees and tree stumps:
B214: C1.6.3.1 | C214: Girth equal to or exceeding 1,0 m up to and including 2,0 m | D214: No | E214: 15 | F214: R1,350.00 | G214: =E214*F214 -> R20,250.00
B216: C1.6.3.2 | C216: Girth exceeding 2,0 m up to and including 3,0 m | D216: No | E216: 23 | F216: R1,550.00 | G216: =E216*F216 -> R35,650.00
B218: C2.1.2 | C218: Existing services location, detection and verification:
B220: C2.1.2.5 | C220: Using hand excavation to locate, expose and verify services | D220: m³ | E220: 300 | F220: R750.00 | G220: =E220*F220 -> R225,000.00
B232: Total Carried Forward | G232: =SUM(G206:G231) -> R316,900.00
B234: C3.1 DRAINS
B235: Item | C235: Description | D235: Unit | E235: Quantity | F235: Rate | G235: Amount R
A236: 237 | B236: C3.1 | C236: DRAINS
A238: 6199 | B238: C3.1.1 | C238: Excavation for open drains:
A240: 6200 | B240: C3.1.1.1 | C240: Excavating all material situated within the following depth ranges below the surface level using conventional methods:
A242: 6201 | C242: (a) 0 m to 1,5 m (includes side drains and mitre drains) * one side of the drain only at 2% crossfall | D242: m³ | E242: 2500 | F242: R120.00 | G242: =E242*F242 -> R300,000.00
A244: 5315 | B244: C3.1.16 | C244: Loading and hauling of material in excess of 1,0 km | D244: m³-km | E244: 5 | F244: R6.00 | G244: =E244*F244 -> R30.00
A246: 5322
B252: Total Carried Forward To Summary | G252: =SUM(G236:G251) -> R300,030.00
B254: C3.2 CULVERTS
B255: Item | C255: Description | D255: Unit | E255: Quantity | F255: Rate | G255: Amount R
A256: 238 | B256: C3.2 | C256: CULVERTS
A258: 6211 | B258: C3.2.1 | C258: Excavation for culvert structures:
A260: 6212 | B260: C3.2.1.1 | C260: Excavating in all material situated within the following depth ranges below the surface level:
A262: 6213 | C262: (a) 0 m to 1,5 m | D262: m³ | E262: 40 | F262: R150.00 | G262: =E262*F262 -> R6,000.00
A264: 3434 | B264: C3.2.2.1 | C264: Using the excavated material | D264: m³ | E264: 25 | F264: R150.00 | G264: =E264*F264 -> R3,750.00
A266: 3435 | B266: C3.2.2.2 | C266: Using imported selected material:
A268: 3436 | C268: (a) From commercial sources (state type) | D268: m³ | E268: 10 | F268: R600.00 | G268: =E268*F268 -> R6,000.00
A270: 3443 | B270: PC3.2.3 | C270: Concrete pipe culverts:
A272: 3445 | B272: C3.2.3.2 | C272: On Class B bedding (type and diameter indicated) | D272: m | E272: 50 | F272: R1,250.00 | G272: =E272*F272 -> R62,500.00
A274: 3446 | C274: (a) Supply and install precast concrete pipe culvert, DN300 (spigot-and-socket with elastomeric seal, SANS 986/677 compliant), laid to line and level. Item includes all pipe sections and jointing materials for one completed road crossing | D274: No | E274: 10 | F274: R2,500.00 | G274: =E274*F274 -> R25,000.00
C276: (b) Stone pitching apron at mirtre drain/culvert outlets, 150 mm thick on geotextile | D276: m2 | E276: 70 | F276: R450.00 | G276: =E276*F276 -> R31,500.00
C278: (c ) Geotextile separator (Class A2/A3) under mitre drain aprons | D278: m2 | E278: 70 | F278: R25.00 | G278: =E278*F278 -> R1,750.00
B280: PC11.1.2 | C280: Stone pitching:
B282: C11.1.2.2 | C282: Grouted stone pitching with mortar | D282: m² | G282: =E282*F282 -> 0
B289: Total Carried Forward | G289: =SUM(G256:G288) -> R136,500.00
B291: C4.4 COMMERCIAL MATERIALS
A292: 243 | B292: Item | C292: Description | D292: Unit | E292: Quantity | F292: Rate | G292: Amount R
B293: C4.4 | C293: COMMERCIAL MATERIALS
B295: C4.4.2 | C295: Commercial materials identified by the Contractor from commercial, private or other non-commercial suppliers:
B297: PC4.4.2.1 | C297: Pavement layer material:
C299: (e) Type G5 material | D299: m³ | E299: 2750 | F299: R350.00 | G299: =E299*F299 -> R962,500.00
C301: (e) Type G6 material | D301: m³ | E301: 1450 | F301: R305.00 | G301: =E301*F301 -> R442,250.00
C303: (e) Type G7 material | D303: m³ | E303: 2550 | F303: R300.00 | G303: =E303*F303 -> R765,000.00
C305: (q) Natural or crushed gravel material for the wearing course of an unsealed road | D305: m³ | E305: 2550 | F305: R350.00 | G305: =E305*F305 -> R892,500.00
B307: C4.4.4 | C307: Cementitious stabilising agents:
B309: C4.4.4.1 | C309: Cement | D309: ton | E309: 90 | F309: R1,900.00 | G309: =E309*F309 -> R171,000.00
B311: C4.4.5 | C311: Bituminous stabilising agents:
B313: C4.4.5.2 | C313: Emulsion stable grade (CAT 65 spray-grade ) | D313: t | E313: 2.5 | F313: R1,600.00 | G313: =E313*F313 -> R4,000.00
A315: 3733 | B315: C4.4.7 | C315: Sampling and material testing by a commercial laboratory for the stabilisation designs:
A317: 3734 | B317: C4.4.7.1 | C317: Cost of sampling and material testing | D317: prov sum | E317: 1 | F317: R50,000.00 | G317: =E317*F317 -> R50,000.00
B319: C4.4.7.2 | C319: Handling cost and profit in respect of item C4.4.7.1 | D319: % | E319: =F317 -> 50000 | F319: R0.08 | G319: =E319*F319 -> R4,000.00
B322: Total Carried Forward To Summary | G322: =SUM(G293:G321) -> R3,291,250.00
B324: C5.1 ROADBED
A325: 245 | B325: Item | C325: Description | D325: Unit | E325: Quantity | F325: Rate | G325: Amount R
B326: C5.1 | C326: ROADBED
A327: 3777
B328: PC5.1.1 | C328: Roadbed construction and compaction:
A329: 3779
B330: PC5.1.1.2 | C330: Compaction of in-situ material to atleast 90 % Mod AASHTO | D330: m³ | E330: 8300 | F330: R25.00 | G330: =E330*F330 -> R207,500.00
A331: 3793
B332: C5.1.3 | C332: Excavate material to spoil sites designated by the Contractor:
A333: 3794
B334: C5.1.3.1 | C334: Excavate material to spoil from roadbed construction, material obtained from:
A335: 3795
C336: (a) Soft excavation | D336: m³ | E336: 30000 | F336: R50.00 | G336: =E336*F336 -> R1,500,000.00
A337: 3796
C338: (b) Boulder excavation Class A | D338: m³ | E338: 600 | F338: R350.00 | G338: =E338*F338 -> R210,000.00
A339: 6227
C340: (d) Hard excavation (other than by blasting) | D340: m³ | E340: 200 | F340: R400.00 | G340: =E340*F340 -> R80,000.00
B342: C5.1.3.2 | C342: Excavate material to spoil from roadbed construction, using labour enhancement, material obtained from:
A343: 3798
C344: (a) Soft excavation | D344: m³ | E344: 300 | F344: R80.00 | G344: =E344*F344 -> R24,000.00
A345: 3799
B346: C5.1.4 | C346: Removal of unsuitable material to spoil: | D346: `
A347: 3801
B348: C5.1.4.1 | C348: In layer thicknesses of 200 mm and less:
A349: 6230
C350: (a) Stable material | D350: m³ | E350: 200 | F350: R55.00 | G350: =E350*F350 -> R11,000.00
A351: 6231
C352: (b) Unstable material | D352: m³ | E352: 200 | F352: R55.00 | G352: =E352*F352 -> R11,000.00
A353: 3804
B354: C5.1.5 | C354: In-situ treatment of roadbed in hard material:
A355: 3805
B356: C5.1.5.1 | C356: In-situ treatment by ripping | D356: m³ | E356: 8300 | F356: R15.00 | G356: =E356*F356 -> R124,500.00
A357: 5446
B363: Total Carried Forward To Summary | G363: =SUM(G326:G362) -> R2,168,000.00
B365: C5.3 ROAD PAVEMENT LAYERS
A366: 247 | B366: Item | C366: Description | D366: Unit | E366: Quantity | F366: Rate | G366: Amount R
B367: C5.3 | C367: ROAD PAVEMENT LAYERS
B369: C5.3.1 | C369: Compiling and implementing M&U plans for the construction of all the pavement layers | D369: No | E369: 5 | F369: R1,500.00 | G369: =E369*F369 -> R7,500.00
B371: PC5.3.2 | C371: Construction of pavement layers:
B373: PC5.3.2.1 | C373: Construction of layers using conventional construction methods:
C375: Roadway
C377: (a) Lower G7 selected subgrade layer (150mm) compacted to 93% Mod AASHTO | D377: m³ | E377: 1100 | F377: R80.00 | G377: =E377*F377 -> R88,000.00
C379: (g) Gravel wearing course layer 150mm compacted to 95% Mod AASHTO | D379: m³ | E379: 1100 | F379: R120.00 | G379: =E379*F379 -> R132,000.00
C381: (j) Lower G5 subbase gravel layer (chemically stabilised to achieve a 150mm C4 layer) compacted to 95% Mod AASHTO | D381: m³ | E381: 1100 | F381: R120.00 | G381: =E381*F381 -> R132,000.00
C383: Tarpaulin Removal Area and Staging Area
C385: (a) Lower G7 selected subgrade layer (150mm) compacted to 93% Mod AASHTO | D385: m³ | E385: 1500 | F385: R80.00 | G385: =E385*F385 -> R120,000.00
C387: (c) Upper G6 selected subgrade layer (150mm) compacted to 95% Mod AASHTO | D387: m³ | E387: 1500 | F387: R100.00 | G387: =E387*F387 -> R150,000.00
C389: (g) Gravel wearing course layer 150mm compacted to 95% Mod AASHTO | D389: m³ | E389: 1500 | F389: R100.00 | G389: =E389*F389 -> R150,000.00
C391: (j) Lower G5 subbase gravel layer (chemically stabilised to achieve a 150mm C4 layer) compacted to 95% Mod AASHTO | D391: m³ | E391: 1500 | F391: R100.00 | G391: =E391*F391 -> R150,000.00
C393: Laydown Area
C395: (i) Lower G5 subbase gravel layer (unstabilised) (200mm) compacted to 95% Mod AASHTO | D395: m³ | E395: 200 | F395: R100.00 | G395: =E395*F395 -> R20,000.00
A402: 5451
A404: 3867
A406: 3868
A410: 5459
A412: 5466
B415: Total Carried Forward | G415: =SUM(G367:G414) -> R949,500.00
B417: C5.4 STABILISATION
B418: Item | C418: Description | D418: Unit | E418: Quantity | F418: Rate | G418: Amount R
B419: C5.4 | C419: STABILISATION
B421: C5.4.2 | C421: Chemical stabilisation:
B423: C5.4.2.1 | C423: Chemical stabilisation of 150mm G5 gravel pavement layers to achieve C4 properties | D423: m³ | E423: 2600 | F423: R20.00 | G423: =E423*F423 -> R52,000.00
B425: C5.4.2.2 | C425: Chemical stabilisation of 150mm G5 gravel of pavement layers to achieve C4 properties using labour enhanced methods of construction | D425: m³ | E425: 500 | F425: R30.00 | G425: =E425*F425 -> R15,000.00
B427: C5.4.5 | C427: Cementitious stabilisation agents for pavement layers:
B429: C5.4.5.2 | C429: Addition of cementitious stabilisation agents for pavement layers and spreading the agent using bags and labour enhancement methods:
C431: (a) Cement (CEM II 32.5N Portland composite cement) | D431: t | E431: 90 | F431: R200.00 | G431: =E431*F431 -> R18,000.00
B433: PC8.2.1 | C433: Cover sprays, fog sprays and rejuvenation sprays:
B435: C8.2.1.1 | C435: 65 % Cationic spray grade emulsion:
C437: (a) Diluted with 60% emulsion / 40% water | D437: ℓ | E437: 2010 | F437: R20.00 | G437: =E437*F437 -> R40,200.00
B452: Total Carried Forward | G452: =SUM(G419:G451) -> R125,200.00
B455: C6.2 SEGMENTAL BLOCK PAVING LAYERS
B456: Item | C456: Description | D456: Unit | E456: Quantity | F456: Rate | G456: Amount R
B457: C6.2 | C457: SEGMENTAL BLOCK PAVING LAYERS
B459: C6.2.1 | C459: Segmental block paving:
B461: C6.2.1.1 | C461: Concrete block paving (60mm Class 30/2.0, Type S-A) | D461: m² | E461: 200 | F461: R200.00 | G461: =E461*F461 -> R40,000.00
B463: C6.2.3 | C463: Provision and application of approved herbicide and ant poison:
... 56 more rows

Sheet Site Establishment Breakdown (hidden)
B2: Once off charges | L2: Months | M2: Days
B3: Site Establishment | C3: Qty | D3: Months | E3: Rate | F3: Amount | L3: =M3/30 -> 5.333333333 | M3: 160.00 | N3: Outage 1
B4: Site Offices | C4: 2 | D4: 1 | E4: =3320*1.15 -> R3,818.00 | F4: =C4*E4*D4 -> R7,636.00 | I4: https://www.b-one.co.za/hire/construction-hire/container/6m-insulated-office-container-with-aircon-4 | L4: 4.866666667 | M4: 146.00 | N4: Outage 2
B5: Kitchen | C5: 1 | D5: 1 | E5: R3,500.00 | F5: =C5*E5*D5 -> R3,500.00 | I5: https://www.b-one.co.za/hire/construction-hire/container/6m-kitchen-unit-46 | L5: 1.666666667 | M5: 50.00 | N5: Outage 3
B6: Eating area | C6: 1 | D6: 1 | E6: R3,500.00 | F6: R3,500.00 | L6: 1.366666667 | M6: 41.00 | N6: Outage 4
B7: Storeroom | C7: 1 | D7: 1 | E7: R1,500.00 | F7: R1,500.00 | I7: https://www.b-one.co.za/hire/construction-hire/container/6m-storage-container-1 | L7: 1.433333333 | M7: 43.00 | N7: Outage 5
B8: Changing room | C8: 2 | D8: 1 | E8: R1,500.00 | F8: R3,000.00 | L8: 2 | M8: 60.00 | N8: Outage 6
B9: Ablutions | C9: 3 | D9: 1 | E9: R2,100.00 | F9: =C9*E9*D9 -> R6,300.00 | I9: https://www.b-one.co.za/hire/construction-hire/toilet/de-luxe-24 | L9: 2 | M9: 60.00 | N9: Outage 7
B10: Consumables | C10: 1 | D10: 1 | E10: R5,000.00 | F10: =C10*E10*D10 -> R5,000.00
B11: Tools & Equipment | C11: 1 | D11: 1 | E11: R50,000.00 | F11: =C11*E11*D11 -> R50,000.00
B12: Utilites (Water + Electricity) | C12: 1 | D12: 1 | E12: R5,000.00 | F12: =C12*E12*D12 -> R5,000.00
B13: Delivery | C13: 1 | D13: 1 | E13: R20,000.00 | F13: =E13 -> R20,000.00 | M13: =SUM(M3:M9) -> 560.00 | N13: Total Outage Days
B14: Setting-up fee | C14: 1 | D14: 1 | E14: R10,000.00 | F14: =E14 -> R10,000.00
B15: Total | F15: =SUM(F4:F14) -> R115,436.00 | L15: =SUM(L3:L9) -> 18.66666667 | M15: Total Months on Site
B17: Time-related charges
B18: Site Establishment | C18: Qty | D18: Months | E18: Rate | F18: Amount
B19: Site Offices | C19: 2 | D19: 1 | E19: =3320*1.15 -> R3,818.00 | F19: =C19*E19*D19 -> R7,636.00
B20: Kitchen | C20: 1 | D20: 1 | E20: R3,500.00 | F20: =C20*E20*D20 -> R3,500.00
B21: Eating area | C21: 1 | D21: 1 | E21: R3,500.00 | F21: R3,500.00
B22: Storeroom | C22: 1 | D22: 1 | E22: R1,500.00 | F22: R1,500.00
B23: Changing room | C23: 2 | D23: 1 | E23: R1,500.00 | F23: R3,000.00
B24: Ablutions | C24: 3 | D24: 1 | E24: R2,100.00 | F24: =C24*E24*D24 -> R6,300.00
B25: Consumables | C25: 1 | D25: 1 | E25: R2,000.00 | F25: =C25*E25*D25 -> R2,000.00
B26: Utilites (Water + Electricity) | C26: 1 | D26: 1 | E26: R3,000.00 | F26: =C26*E26*D26 -> R3,000.00
B27: Total | F27: =SUM(F19:F26) -> R30,436.00
